Workbook

Sheet Obsah
F2: 100
D4: B3 Předškolní vzdělávání, vývoj mateřských škol
D5: Zdroje dat jsou uvedeny v zápatí jednotlivých tabulek
D7: Text | F7: Obsah
E8: Předškolní výchova
D9: Tabulka 1 | F9: ='B3.1'!H4&" "&'B3.1'!D5 -> Předškolní vzdělávání – děti v předškolním vzdělávání, podíl na populaci 3–5letých dětí ve školním roce 2009/10 až 2019/20
E10: Mateřské školy
D11: Tabulka 2 | F11: ='B3.2'!H4&" "&'B3.2'!D5 -> Mateřské školy – školy, třídy, děti/dívky, učitelé ve školním roce 2009/10 až 2019/20 – podle zřizovatele
D13: Tabulka 3 | F13: ='B3.3'!H4&" "&'B3.3'!D5 -> Mateřské školy – školy ve školním roce 2009/10 až 2019/20 – podle počtu dětí v mateřské škole
D15: Tabulka 4 | F15: ='B3.4'!H4&" "&'B3.4'!D5 -> Mateřské školy – děti ve školním roce 2009/10 až 2019/20 – podle věku
D17: Tabulka 5 | F17: ='B3.5'!H4&" "&'B3.5'!D5 -> Mateřské školy – podíl na celkovém počtu dětí v populačním ročníku ve školním roce 2009/10 až 2019/20
D19: Tabulka 6 | F19: ='B3.6'!H4&" "&'B3.6'!D5 -> Mateřské školy – školy ve školním roce 2009/10 až 2019/20 – podle území
D21: Tabulka 7 | F21: ='B3.7'!H4&" "&'B3.7'!D5 -> Mateřské školy – děti ve školním roce 2009/10 až 2019/20 – podle území
D23: Tabulka 8 | F23: ='B3.8'!H4&" "&'B3.8'!D5 -> Mateřské školy – zdravotně postižené a znevýhodněné děti ve školním roce 2009/10 až 2019/20
D25: Tabulka 9 | F25: ='B3.9'!H4&" "&'B3.9'!D5 -> Mateřské školy – poměrové ukazatele ve školním roce 2009/10 až 2019/20
D27: Tabulka 10 | F27: ='B3.10'!H4&" "&'B3.10'!D5 -> Mateřské školy – třídy a děti ve školním roce 2009/10 až 2019/20 – podle druhu provozu
D29: Tabulka 11 | F29: ='B3.11'!H4&" "&'B3.11'!D5 -> Mateřské školy – doplňkové údaje o MŠ ve školním roce 2009/10 až 2019/20
D31: Tabulka 12 | F31: ='B3.12'!H4&" "&'B3.12'!D5 -> Mateřské školy – struktura učitelů v letech 2011 až 2019 – podle nejvyššího dosaženého vzdělání
D33: Tabulka 13 | F33: ='B3.13'!H4&" "&'B3.13'!D5 -> Mateřské školy – struktura učitelů v letech 2011 až 2019 – podle věku
D35: Tabulka 14 | F35: ='B3.14'!H4&" "&'B3.14'!D5 -> Mateřské školy – přepočtené počty zaměstnanců v letech 2009 až 2019
D37: Tabulka 15 | F37: ='B3.15'!H4&" "&'B3.15'!D5 -> Mateřské školy – průměrné měsíční mzdy zaměstnanců v letech 2009 až 2019
D39: Tabulka 16 | F39: ='B3.16'!$H$4&" "&'B3.16'!$D$5 -> Předškolní vzdělávání – výdaje na předškolní vzdělávání v letech 2009 až 2019
E40: Obrazová příloha
D42: Graf 1 | F42: ='GB1'!$G$4&" "&'GB1'!$D$5 -> Předškolní výchova – děti v předškolním vzdělávání, populace 3–5letých dětí ve školním roce 2009/10 až 2019/20
D44: Graf 2 | F44: ='GB2'!$F$4&" "&'GB2'!$D$5 -> Mateřské školy – struktura dětí ve školní roce 2009/10 až 2019/20 – podle věku
D46: Graf 3 | F46: ='GB3'!$G$4&" "&'GB3'!$D$5 -> Mateřské školy – struktura škol ve školním roce 2009/10 až 2019/20 – podle počtu dětí v mateřské škole
D48: Graf 4 | F48: ='GB4'!$G$4&" "&'GB4'!$D$5 -> Mateřské školy – všichni zřizovatelé – přepočtené počty zaměstnanců a učitelů, průměrné nominální a reálné mzdy v letech 2009 až 2019

Sheet B3.1
D4: Tab. B3.1: | H4: Předškolní vzdělávání – děti v předškolním vzdělávání, podíl na populaci 3–5letých
D5: dětí ve školním roce 2009/10 až 2019/20
J7: 2003/04 | K7: 2004/05 | L7: 2005/06 | M7: 2006/07 | N7: 2007/08 | O7: 2008/09 | P7: 2009/10 | Q7: 2010/11 | R7: 2011/12 | S7: 2012/13 | T7: 2013/14 | U7: 2014/15 | V7: 2015/16 | W7: 2016/17 | X7: 2017/18 | Y7: 2018/19 | Z7: 2019/20
J11: 1) | K11: 1)
E12: Předškolní vzdělávání celkem | J12: 288688 | K12: 288446 | L12: 284034 | M12: 287434 | N12: 293383 | O12: 303899 | P12: 316671 | Q12: 331782 | R12: 345850 | S12: 358104 | T12: 367352 | U12: 371690 | V12: 372137 | W12: 367732 | X12: 368082 | Y12: 369485 | Z12: 371870
E13: Podíl dětí v předškolním vzdělávání k populaci 3–5letých | J13: 1.080649689 | K13: 1.070868773 | L13: 1.035022575 | M13: 1.029974666 | N13: 1.024818533 | O13: 1.024318804 | P13: 1.023973588 | Q13: 1.016672744 | R13: 0.9880609892 | S13: 0.9872113314 | T13: 1.009297521 | U13: 1.059619074 | V13: 1.096529818 | W13: 1.118399523 | X13: 1.111529855 | Y13: 1.10645453 | Z13: 1.095875474
E14: Mateřské školy | J14: 286340 | K14: 286230 | L14: 282183 | M14: 285419 | N14: 291194 | O14: 301620 | P14: 314008 | Q14: 328612 | R14: 342521 | S14: 354340 | T14: 363568 | U14: 367603 | V14: 367361 | W14: 362653 | X14: 362756 | Y14: 363776 | Z14: 364909
E15: Podíl na populaci 3–5letých | J15: 1.071860389 | K15: 1.062641773 | L15: 1.028277513 | M15: 1.022754229 | N15: 1.017172119 | O15: 1.01663723 | P15: 1.015362627 | Q15: 1.006958978 | R15: 0.9785503487 | S15: 0.976834839 | T15: 0.9989010023 | U15: 1.047967797 | V15: 1.082456973 | W15: 1.102952537 | X15: 1.095446461 | Y15: 1.08935844 | Z15: 1.075361883
E16: Navíc děti podle § 34 odst. 10 ŠZ | O16: . | P16: . | Q16: . | R16: . | S16: . | T16: . | U16: . | V16: . | W16: 279 | X16: 227 | Y16: 329 | Z16: 219
E17: Navíc s indiv. vzděl. podle podle § 34b ŠZ | O17: . | P17: . | Q17: . | R17: . | S17: . | T17: . | U17: . | V17: . | W17: . | X17: 1464 | Y17: 1959 | Z17: 2169
E18: Přípravný stupeň základní školy speciální | J18: 705 | K18: 657 | L18: 410 | M18: 302 | N18: 260 | O18: 251 | P18: 253 | Q18: 248 | R18: 274 | S18: 284 | T18: 264 | U18: 268 | V18: 262 | W18: 231 | X18: 228 | Y18: 289 | Z18: 196
E19: Přípravné třídy | J19: 1643 | K19: 1559 | L19: 1441 | M19: 1713 | N19: 1929 | O19: 2028 | P19: 2410 | Q19: 2922 | R19: 3055 | S19: 3480 | T19: 3520 | U19: 3819 | V19: 4514 | W19: 4569 | X19: 3407 | Y19: 3132 | Z19: 4377
Z20: Zdroj: databáze MŠMT, ČSÚ
P28: 106813 | Q28: 115445 | R28: 122912 | S28: 121413 | T28: 119584 | U28: 109520 | V28: 109868 | W28: 108974 | X28: 111825 | Y28: 112507 | Z28: 114188
P29: 103653 | Q29: 107010 | R29: 118351 | S29: 122945 | T29: 121424 | U29: 119742 | V29: 109664 | W29: 110013 | X29: 109155 | Y29: 112082 | Z29: 112815
P30: 98791 | Q30: 103886 | R30: 108766 | S30: 118385 | T30: 122960 | U30: 121515 | V30: 119845 | W30: 109815 | X30: 110169 | Y30: 109347 | Z30: 112333
H31: populace 3–5 | P31: =SUM(P28:P30) -> 309257 | Q31: =SUM(Q28:Q30) -> 326341 | R31: 350029 | S31: 362743 | T31: 363968 | U31: 350777 | V31: 339377 | W31: 328802 | X31: 331149 | Y31: 333936 | Z31: 339336
P34: =P12/P31 -> 1.023973588 | Q34: =Q12/Q31 -> 1.016672744 | R34: 0.9880609892 | S34: 0.9872113314 | T34: 1.009297521 | U34: 1.059619074 | V34: 1.096529818 | W34: 1.118399523 | X34: 1.111529855 | Y34: 1.10645453 | Z34: 1.095875474
P35: =P14/P31 -> 1.015362627 | Q35: =Q14/Q31 -> 1.006958978 | R35: 0.9785503487 | S35: 0.976834839 | T35: 0.9989010023 | U35: 1.047967797 | V35: 1.082456973 | W35: 1.102952537 | X35: 1.095446461 | Y35: 1.08935844 | Z35: 1.075361883

Sheet B3.2
D4: Tab. B3.2: | H4: Mateřské školy – školy, třídy, děti/dívky, učitelé
B5: 30 | D5: ve školním roce 2009/10 až 2019/20 – podle zřizovatele
D7: Zřizovatel | J7: 2003/04 | K7: 2004/05 | L7: 2005/06 | M7: 2006/07 | N7: 2007/08 | O7: 2008/09 | P7: 2009/10 | Q7: 2010/11 | R7: 2011/12 | S7: 2012/13 | T7: 2013/14 | U7: 2014/15 | V7: 2015/16 | W7: 2016/17 | X7: 2017/18 | Y7: 2018/19 | Z7: 2019/20
J11: 1) | K11: 1)
D12: Školy
E13: Celkem | J13: 5067 | K13: 4994 | L13: 4834 | M13: 4815 | N13: 4808 | O13: 4809 | P13: 4826 | Q13: 4880 | R13: 4931 | S13: 5011 | T13: 5085 | U13: 5158 | V13: 5209 | W13: 5209 | X13: 5269 | Y13: 5287 | Z13: 5304
E14: v tom | F14: veřejný | J14: 4973 | K14: 4899 | L14: 4741 | M14: 4720 | N14: 4706 | O14: 4702 | P14: 4702 | Q14: 4723 | R14: 4745 | S14: 4778 | T14: 4794 | U14: 4812 | V14: 4828 | W14: 4820 | X14: 4833 | Y14: 4838 | Z14: 4854
F15: v tom | G15: MŠMT | J15: 8 | K15: 7 | L15: 8 | M15: 8 | N15: 8 | O15: 8 | P15: 8 | Q15: 8 | R15: 8 | S15: 8 | T15: 7 | U15: 7 | V15: 7 | W15: 7 | X15: 7 | Y15: 7 | Z15: 7
G16: obec | J16: 4794 | K16: 4726 | L16: 4654 | M16: 4631 | N16: 4617 | O16: 4613 | P16: 4614 | Q16: 4638 | R16: 4662 | S16: 4693 | T16: 4707 | U16: 4723 | V16: 4737 | W16: 4730 | X16: 4743 | Y16: 4746 | Z16: 4761
G17: jiný resort | J17: 0 | K17: 0 | L17: 0 | M17: 0 | N17: 0 | O17: 0 | P17: 0 | Q17: 0 | R17: 0 | S17: 0 | T17: 0 | U17: 0 | V17: 0 | W17: 0 | X17: 1 | Y17: 1 | Z17: 1
G18: kraj | J18: 171 | K18: 166 | L18: 79 | M18: 81 | N18: 81 | O18: 81 | P18: 80 | Q18: 77 | R18: 75 | S18: 77 | T18: 80 | U18: 82 | V18: 84 | W18: 83 | X18: 82 | Y18: 84 | Z18: 85
F19: privátní sektor | J19: 74 | K19: 75 | L19: 72 | M19: 73 | N19: 77 | O19: 82 | P19: 96 | Q19: 126 | R19: 150 | S19: 194 | T19: 249 | U19: 300 | V19: 333 | W19: 340 | X19: 386 | Y19: 399 | Z19: 401
F20: církev | J20: 20 | K20: 20 | L20: 21 | M20: 22 | N20: 25 | O20: 25 | P20: 28 | Q20: 31 | R20: 36 | S20: 39 | T20: 42 | U20: 46 | V20: 48 | W20: 49 | X20: 50 | Y20: 50 | Z20: 49
D21: Třídy
E22: Celkem | J22: 12797 | K22: 12689 | L22: 12409 | M22: 12494 | N22: 12698 | O22: 13035 | P22: 13452 | Q22: 13988 | R22: 14481 | S22: 14972 | T22: 15390 | U22: 15729 | V22: 15848 | W22: 15856 | X22: 15969 | Y22: 16064 | Z22: 16295
E23: v tom | F23: veřejný | J23: 12590 | K23: 12477 | L23: 12205 | M23: 12288 | N23: 12474 | O23: 12797 | P23: 13176 | Q23: 13650 | R23: 14084 | S23: 14494 | T23: 14795 | U23: 15021 | V23: 15076 | W23: 15069 | X23: 15117 | Y23: 15195 | Z23: 15418
F24: v tom | G24: MŠMT | J24: 14 | K24: 14 | L24: 16 | M24: 15 | N24: 16 | O24: 18 | P24: 20 | Q24: 20 | R24: 20 | S24: 20 | T24: 17 | U24: 19 | V24: 18 | W24: 19 | X24: 21 | Y24: 21 | Z24: 21
G25: obec | J25: 12145 | K25: 12045 | L25: 11954 | M25: 12041 | N25: 12219 | O25: 12542 | P25: 12915 | Q25: 13389 | R25: 13828 | S25: 14230 | T25: 14526 | U25: 14747 | V25: 14800 | W25: 14786 | X25: 14839 | Y25: 14912 | Z25: 15118
G26: jiný resort | J26: 0 | K26: 0 | L26: 0 | M26: 0 | N26: 0 | O26: 0 | P26: 0 | Q26: 0 | R26: 0 | S26: 0 | T26: 0 | U26: 0 | V26: 0 | W26: 0 | X26: 1 | Y26: 1 | Z26: 2
G27: kraj | J27: 431 | K27: 418 | L27: 235 | M27: 232 | N27: 239 | O27: 237 | P27: 241 | Q27: 241 | R27: 236 | S27: 244 | T27: 252 | U27: 255 | V27: 258 | W27: 264 | X27: 256 | Y27: 261 | Z27: 277
F28: privátní sektor | J28: 170 | K28: 175 | L28: 164 | M28: 164 | N28: 174 | O28: 187 | P28: 218 | Q28: 276 | R28: 325 | S28: 397 | T28: 509 | U28: 615 | V28: 676 | W28: 686 | X28: 748 | Y28: 764 | Z28: 774
F29: církev | J29: 37 | K29: 37 | L29: 40 | M29: 42 | N29: 50 | O29: 51 | P29: 58 | Q29: 62 | R29: 72 | S29: 81 | T29: 86 | U29: 93 | V29: 96 | W29: 101 | X29: 104 | Y29: 105 | Z29: 103
D30: Děti
E31: Celkem | J31: 286340 | K31: 286230 | L31: 282183 | M31: 285419 | N31: 291194 | O31: 301620 | P31: 314008 | Q31: 328612 | R31: 342521 | S31: 354340 | T31: 363568 | U31: 367603 | V31: 367361 | W31: 362653 | X31: 362756 | Y31: 363776 | Z31: 364909
E32: v tom | F32: veřejný | J32: 282309 | K32: 282187 | L32: 278176 | M32: 281377 | N32: 287059 | O32: 297069 | P32: 308930 | Q32: 322572 | R32: 335308 | S32: 345746 | T32: 353255 | U32: 355758 | V32: 354263 | W32: 349411 | X32: 348608 | Y32: 349209 | Z32: 350066
F33: v tom | G33: MŠMT | J33: 98 | K33: 101 | L33: 123 | M33: 118 | N33: 113 | O33: 142 | P33: 161 | Q33: 157 | R33: 164 | S33: 144 | T33: 133 | U33: 148 | V33: 141 | W33: 149 | X33: 154 | Y33: 159 | Z33: 166
G34: obec | J34: 277671 | K34: 277664 | L34: 275580 | M34: 278795 | N34: 284495 | O34: 294441 | P34: 306182 | Q34: 319789 | R34: 332586 | S34: 343016 | T34: 350482 | U34: 352979 | V34: 351465 | W34: 346605 | X34: 345830 | Y34: 346412 | Z34: 347107
G35: jiný resort | J35: 0 | K35: 0 | L35: 0 | M35: 0 | N35: 0 | O35: 0 | P35: 0 | Q35: 0 | R35: 0 | S35: 0 | T35: 0 | U35: 0 | V35: 0 | W35: 0 | X35: 24 | Y35: 24 | Z35: 34
G36: kraj | J36: 4540 | K36: 4422 | L36: 2473 | M36: 2464 | N36: 2451 | O36: 2486 | P36: 2587 | Q36: 2626 | R36: 2558 | S36: 2586 | T36: 2640 | U36: 2631 | V36: 2657 | W36: 2657 | X36: 2600 | Y36: 2614 | Z36: 2759
F37: privátní sektor | J37: 3310 | K37: 3303 | L37: 3238 | M37: 3194 | N37: 3226 | O37: 3615 | P37: 4023 | Q37: 4893 | R37: 5778 | S37: 6967 | T37: 8580 | U37: 10001 | V37: 11197 | W37: 11256 | X37: 12125 | Y37: 12520 | Z37: 12859
F38: církev | J38: 721 | K38: 740 | L38: 769 | M38: 848 | N38: 909 | O38: 936 | P38: 1055 | Q38: 1147 | R38: 1435 | S38: 1627 | T38: 1733 | U38: 1844 | V38: 1901 | W38: 1986 | X38: 2023 | Y38: 2047 | Z38: 1984
E39: Z toho dívky | J39: 136886 | K39: 136930 | L39: 134727 | M39: 136604 | N39: 139808 | O39: 144502 | P39: 150613 | Q39: 157799 | R39: 164387 | S39: 170705 | T39: 175049 | U39: 176574 | V39: 176418 | W39: 174058 | X39: 174333 | Y39: 174772 | Z39: 175540
E40: v tom | F40: veřejný | J40: 134971 | K40: 134997 | L40: 132793 | M40: 134698 | N40: 137819 | O40: 142295 | P40: 148213 | Q40: 154988 | R40: 160969 | S40: 166580 | T40: 170082 | U40: 170806 | V40: 170107 | W40: 167667 | X40: 167572 | Y40: 167789 | Z40: 168442
F41: v tom | G41: MŠMT | J41: 34 | K41: 32 | L41: 43 | M41: 44 | N41: 36 | O41: 51 | P41: 62 | Q41: 59 | R41: 59 | S41: 58 | T41: 55 | U41: 55 | V41: 45 | W41: 48 | X41: 46 | Y41: 49 | Z41: 51
G42: obec | J42: 133036 | K42: 133101 | L42: 131772 | M42: 133723 | N42: 136855 | O42: 141333 | P42: 147184 | Q42: 153968 | R42: 160018 | S42: 165608 | T42: 169100 | U42: 169859 | V42: 169125 | W42: 166693 | X42: 166605 | Y42: 166848 | Z42: 167437
G43: jiný resort | J43: 0 | K43: 0 | L43: 0 | M43: 0 | N43: 0 | O43: 0 | P43: 0 | Q43: 0 | R43: 0 | S43: 0 | T43: 0 | U43: 0 | V43: 0 | W43: 0 | X43: 15 | Y43: 10 | Z43: 17
G44: kraj | J44: 1901 | K44: 1864 | L44: 978 | M44: 931 | N44: 928 | O44: 911 | P44: 967 | Q44: 961 | R44: 892 | S44: 914 | T44: 927 | U44: 892 | V44: 937 | W44: 926 | X44: 906 | Y44: 882 | Z44: 937
F45: privátní sektor | J45: 1579 | K45: 1579 | L45: 1571 | M45: 1517 | N45: 1572 | O45: 1773 | P45: 1908 | Q45: 2298 | R45: 2766 | S45: 3374 | T45: 4129 | U45: 4858 | V45: 5391 | W45: 5437 | X45: 5795 | Y45: 5999 | Z45: 6169
F46: církev | J46: 336 | K46: 354 | L46: 363 | M46: 389 | N46: 417 | O46: 434 | P46: 492 | Q46: 513 | R46: 652 | S46: 751 | T46: 838 | U46: 910 | V46: 920 | W46: 954 | X46: 966 | Y46: 984 | Z46: 929
D47: Učitelé (přepočtené počty)
E48: Celkem | J48: . | K48: . | L48: 22484.6 | M48: 22367.7 | N48: 22744.3 | O48: 23567.8 | P48: 24584.3 | Q48: 25736.8 | R48: 26780.6 | S48: 27739.2 | T48: 28583 | U48: 29283.4 | V48: 29513.8 | W48: 29629.5 | X48: 30303.2 | Y48: 30580.8 | Z48: 32372.6
E49: v tom | F49: veřejný | J49: . | K49: . | L49: 22109.4 | M49: 21989.9 | N49: 22351.8 | O49: 23147.1 | P49: 24096.4 | Q49: 25129.5 | R49: 26047.8 | S49: 26830 | T49: 27476.8 | U49: 27969.9 | V49: 28104.9 | W49: 28194.2 | X49: 28771.3 | Y49: 28992.9 | Z49: 30753.3
F50: v tom | G50: MŠMT | J50: . | K50: . | L50: 29.6 | M50: 27.1 | N50: 27.5 | O50: 32 | P50: 36 | Q50: 35.5 | R50: 35.9 | S50: 34.2 | T50: 30.5 | U50: 32.4 | V50: 30.3 | W50: 31.3 | X50: 35.5 | Y50: 38.7 | Z50: 39.5
G51: obec | J51: . | K51: . | L51: 21422.3 | M51: 21343.3 | N51: 21728.5 | O51: 22532.7 | P51: 23474 | Q51: 24520.1 | R51: 25451.8 | S51: 26234.4 | T51: 26871.8 | U51: 27352.2 | V51: 27494.1 | W51: 27571.7 | X51: 28147.3 | Y51: 28365.4 | Z51: 30088.6
G52: jiný resort | J52: . | K52: . | L52: 0 | M52: 0 | N52: 0 | O52: 0 | P52: 0 | Q52: 0 | R52: 0 | S52: 0 | T52: 0 | U52: 0 | V52: 0 | W52: 0 | X52: 3 | Y52: 3 | Z52: 5
G53: kraj | J53: . | K53: . | L53: 657.5 | M53: 619.5 | N53: 595.8 | O53: 582.4 | P53: 586.4 | Q53: 573.9 | R53: 560.1 | S53: 561.4 | T53: 574.5 | U53: 585.3 | V53: 580.5 | W53: 591.2 | X53: 585.5 | Y53: 585.8 | Z53: 620.2
F54: privátní sektor | J54: . | K54: . | L54: 304.4 | M54: 301.8 | N54: 311.6 | O54: 339 | P54: 394.2 | Q54: 505.1 | R54: 605.7 | S54: 767.2 | T54: 956.5 | U54: 1145.2 | V54: 1229.9 | W54: 1249 | X54: 1345.6 | Y54: 1400.8 | Z54: 1431.6
F55: církev | J55: . | K55: . | L55: 70.8 | M55: 76 | N55: 80.9 | O55: 81.7 | P55: 93.7 | Q55: 102.2 | R55: 127.1 | S55: 142 | T55: 149.7 | U55: 168.3 | V55: 179 | W55: 186.3 | X55: 186.3 | Y55: 187.1 | Z55: 187.7
E56: Z toho ženy | J56: . | K56: . | L56: 22466.5 | M56: 22344 | N56: 22717.3 | O56: 23533.4 | P56: 24542.2 | Q56: 25670.6 | R56: 26687.7 | S56: 27627.9 | T56: 28450.7 | U56: 29129.7 | V56: 29354.1 | W56: 29463.2 | X56: 30126.5 | Y56: 30403.7 | Z56: 32171.5
E57: v tom | F57: veřejný | J57: . | K57: . | L57: 22092.8 | M57: 21969.2 | N57: 22327.6 | O57: 23116.6 | P57: 24061.8 | Q57: 25077.2 | R57: 25972.5 | S57: 26745.1 | T57: 27385 | U57: 27867.8 | V57: 27992.2 | W57: 28072.3 | X57: 28648.2 | Y57: 28867.3 | Z57: 30602.7
F58: v tom | G58: MŠMT | J58: . | K58: . | L58: 29.6 | M58: 27 | N58: 27.5 | O58: 31 | P58: 35 | Q58: 33.5 | R58: 33.9 | S58: 32.2 | T58: 28.5 | U58: 31.4 | V58: 29.3 | W58: 30.3 | X58: 35.5 | Y58: 38.7 | Z58: 39.4
G59: obec | J59: . | K59: . | L59: 21407.2 | M59: 21324.6 | N59: 21705.8 | O59: 22505.7 | P59: 23444.4 | Q59: 24473.3 | R59: 25382 | S59: 26156.6 | T59: 26786.5 | U59: 27254.6 | V59: 27385.4 | W59: 27453.8 | X59: 28027.2 | Y59: 28242.8 | Z59: 29943.1
G60: jiný resort | J60: . | K60: . | L60: 0 | M60: 0 | N60: 0 | O60: 0 | P60: 0 | Q60: 0 | R60: 0 | S60: 0 | T60: 0 | U60: 0 | V60: 0 | W60: 0 | X60: 3 | Y60: 3 | Z60: 5
G61: kraj | J61: . | K61: . | L61: 656 | M61: 617.6 | N61: 594.3 | O61: 579.9 | P61: 582.4 | Q61: 570.4 | R61: 556.6 | S61: 556.3 | T61: 570 | U61: 581.8 | V61: 577.5 | W61: 588.2 | X61: 582.5 | Y61: 582.8 | Z61: 615.2
F62: privátní sektor | J62: . | K62: . | L62: 302.9 | M62: 300.1 | N62: 309.6 | O62: 335.5 | P62: 387.6 | Q62: 493.1 | R62: 589.2 | S62: 741.8 | T62: 916.7 | U62: 1095.9 | V62: 1184.1 | W62: 1205.8 | X62: 1293.2 | Y62: 1351.3 | Z62: 1382.1
F63: církev | J63: . | K63: . | L63: 70.8 | M63: 74.7 | N63: 80.1 | O63: 81.3 | P63: 92.8 | Q63: 100.3 | R63: 126 | S63: 141 | T63: 149 | U63: 166 | V63: 177.8 | W63: 185.1 | X63: 185.1 | Y63: 185.1 | Z63: 186.7
Z64: Zdroj: databáze MŠMT

Sheet B3.3
D4: Tab. B3.3: | H4: Mateřské školy – školy
B5: 0 | D5: ve školním roce 2009/10 až 2019/20 – podle počtu dětí v mateřské škole
D7: Počet dětí | J7: 2003/04 | K7: 2004/05 | L7: 2005/06 | M7: 2006/07 | N7: 2007/08 | O7: 2008/09 | P7: 2009/10 | Q7: 2010/11 | R7: 2011/12 | S7: 2012/13 | T7: 2013/14 | U7: 2014/15 | V7: 2015/16 | W7: 2016/17 | X7: 2017/18 | Y7: 2018/19 | Z7: 2019/20
J11: 1),2) | K11: 1),2)
E12: Celkem | J12: 5067 | K12: 4994 | L12: 4834 | M12: 4815 | N12: 4808 | O12: 4809 | P12: 4826 | Q12: 4880 | R12: 4931 | S12: 5011 | T12: 5085 | U12: 5158 | V12: 5209 | W12: 5209 | X12: 5269 | Y12: 5287 | Z12: 5304
E13: v tom | F13: 0–50 | J13: 3152 | K13: 3079 | L13: 2932 | M13: 2888 | N13: 2843 | O13: 2774 | P13: 2703 | Q13: 2638 | R13: 2606 | S13: 2603 | T13: 2628 | U13: 2688 | V13: 2744 | W13: 2793 | X13: 2841 | Y13: 2873 | Z13: 2869
F14: 51–100 | J14: 1315 | K14: 1298 | L14: 1255 | M14: 1248 | N14: 1246 | O14: 1264 | P14: 1273 | Q14: 1315 | R14: 1328 | S14: 1345 | T14: 1356 | U14: 1355 | V14: 1346 | W14: 1307 | X14: 1326 | Y14: 1304 | Z14: 1346
F15: 101–150 | J15: 383 | K15: 396 | L15: 416 | M15: 441 | N15: 467 | O15: 493 | P15: 531 | Q15: 563 | R15: 599 | S15: 631 | T15: 647 | U15: 647 | V15: 654 | W15: 655 | X15: 646 | Y15: 647 | Z15: 629
F16: 151–200 | J16: 128 | K16: 128 | L16: 132 | M16: 129 | N16: 139 | O16: 149 | P16: 177 | Q16: 198 | R16: 216 | S16: 233 | T16: 243 | U16: 257 | V16: 258 | W16: 248 | X16: 255 | Y16: 262 | Z16: 267
F17: 201–250 | J17: 44 | K17: 47 | L17: 56 | M17: 65 | N17: 62 | O17: 74 | P17: 72 | Q17: 89 | R17: 94 | S17: 104 | T17: 111 | U17: 108 | V17: 110 | W17: 112 | X17: 109 | Y17: 112 | Z17: 106
F18: 251–300 | J18: 20 | K18: 20 | L18: 14 | M18: 15 | N18: 22 | O18: 21 | P18: 31 | Q18: 35 | R18: 42 | S18: 46 | T18: 44 | U18: 50 | V18: 44 | W18: 40 | X18: 42 | Y18: 40 | Z18: 38
F19: 301 a více | J19: 25 | K19: 26 | L19: 29 | M19: 29 | N19: 29 | O19: 34 | P19: 39 | Q19: 42 | R19: 46 | S19: 49 | T19: 56 | U19: 53 | V19: 53 | W19: 54 | X19: 50 | Y19: 49 | Z19: 49
E20: nad 150 | J20: 217 | K20: 221 | L20: 231 | M20: 238 | N20: 252 | O20: 278 | P20: 319 | Q20: 364 | R20: 398 | S20: 432 | T20: 454 | U20: 468 | V20: 465 | W20: 454 | X20: 456 | Y20: 463 | Z20: 460
Z21: Zdroj: databáze MŠMT
P23: 4826 | Q23: 4880 | R23: 4931 | S23: 5011 | T23: 5085 | U23: 5158 | V23: 5209 | W23: 5209 | X23: 5269 | Y23: 5287 | Z23: 5304
P24: 2703 | Q24: 2638 | R24: 2606 | S24: 2603 | T24: 2628 | U24: 2688 | V24: 2744 | W24: 2793 | X24: 2841 | Y24: 2873 | Z24: 2869
P25: 1273 | Q25: 1315 | R25: 1328 | S25: 1345 | T25: 1356 | U25: 1355 | V25: 1346 | W25: 1307 | X25: 1326 | Y25: 1304 | Z25: 1346
P26: 531 | Q26: 563 | R26: 599 | S26: 631 | T26: 647 | U26: 647 | V26: 654 | W26: 655 | X26: 646 | Y26: 647 | Z26: 629
P27: 319 | Q27: 364 | R27: 398 | S27: 432 | T27: 454 | U27: 468 | V27: 465 | W27: 454 | X27: 456 | Y27: 463 | Z27: 460
P30: =P24/P$23 -> 0.5600911728 | Q30: =Q24/Q$23 -> 0.5405737705 | R30: 0.5284932062 | S30: 0.5194571942 | T30: 0.5168141593 | U30: 0.5211322218 | V30: 0.5267805721 | W30: 0.536187368 | X30: 0.5391914974 | Y30: 0.5434083601 | Z30: 0.5409125189
P31: =P25/P$23 -> 0.2637795276 | Q31: 0.2694672131 | R31: 0.2693165686 | S31: 0.2684094991 | T31: 0.2666666667 | U31: 0.2626987204 | V31: 0.2583989249 | W31: 0.2509118833 | X31: 0.2516606567 | Y31: 0.2466427085 | Z31: 0.2537707391
P32: =P26/P$23 -> 0.1100290095 | Q32: 0.1153688525 | R32: 0.121476374 | S32: 0.1259229695 | T32: 0.1272369715 | U32: 0.1254362156 | V32: 0.1255519294 | W32: 0.1257439048 | X32: 0.1226039097 | Y32: 0.1223756384 | Z32: 0.1185897436
P33: =P27/P$23 -> 0.0661002901 | Q33: 0.07459016393 | R33: 0.08071385115 | S33: 0.08621033726 | T33: 0.08928220256 | U33: 0.09073284219 | V33: 0.08926857362 | W33: 0.08715684392 | X33: 0.08654393623 | Y33: 0.08757329298 | Z33: 0.08672699849

Sheet B3.4
D4: Tab. B3.4: | H4: Mateřské školy – děti
D5: ve školním roce 2009/10 až 2019/20 – podle věku
B6: 0
D7: Věk | J7: 2003/04 | K7: 2004/05 | L7: 2005/06 | M7: 2006/07 | N7: 2007/08 | O7: 2008/09 | P7: 2009/10 | Q7: 2010/11 | R7: 2011/12 | S7: 2012/13 | T7: 2013/14 | U7: 2014/15 | V7: 2015/16 | W7: 2016/17 | X7: 2017/18 | Y7: 2018/19 | Z7: 2019/20
J11: 1) | K11: 1)
E12: Celkem | J12: 286340 | K12: 286230 | L12: 282183 | M12: 285419 | N12: 291194 | O12: 301620 | P12: 314008 | Q12: 328612 | R12: 342521 | S12: 354340 | T12: 363568 | U12: 367603 | V12: 367361 | W12: 362653 | X12: 362756 | Y12: 363776 | Z12: 364909
E13: v tom | F13: mladší než 2 roky | K13: . | L13: . | M13: . | N13: . | O13: . | P13: . | Q13: . | R13: . | S13: . | T13: . | U13: 737 | V13: 932 | W13: 950 | X13: 758 | Y13: 650 | Z13: 480
F14: 2leté1) | J14: 23092 | K14: 24709 | L14: 23849 | M14: 22475 | N14: 23710 | O14: 26384 | P14: 30800 | Q14: 33040 | R14: 31355 | S14: 31951 | T14: 33141 | U14: 37161 | V14: 41389 | W14: 43779 | X14: 44713 | Y14: 44724 | Z14: 42540
F15: 3leté | J15: 71530 | K15: 70717 | L15: 69519 | M15: 72108 | N15: 73997 | O15: 79025 | P15: 81334 | Q15: 87263 | R15: 92492 | S15: 91350 | T15: 92365 | U15: 92120 | V15: 90640 | W15: 91390 | X15: 91758 | Y15: 93046 | Z15: 94585
F16: 4leté | J16: 83303 | K16: 84296 | L16: 82369 | M16: 84573 | N16: 85867 | O16: 88134 | P16: 91521 | Q16: 92807 | R16: 99884 | S16: 106784 | T16: 106163 | U16: 107065 | V16: 103501 | W16: 100118 | X16: 99914 | Y16: 99858 | Z16: 101407
F17: 5leté | J17: 85961 | K17: 85193 | L17: 85883 | M17: 85866 | N17: 87273 | O17: 87927 | P17: 90320 | Q17: 94775 | R17: 96959 | S17: 104369 | T17: 111217 | U17: 110000 | V17: 109981 | W17: 105869 | X17: 104901 | Y17: 104749 | Z17: 104522
F18: 6leté | J18: 22454 | K18: 21315 | L18: 20093 | M18: 19997 | N18: 19896 | O18: 19699 | P18: 19586 | Q18: 20263 | R18: 21344 | S18: 19559 | T18: 20287 | U18: 20334 | V18: 20695 | W18: 20392 | X18: 20577 | Y18: 20600 | Z18: 21252
F19: starší než 6 let | J19: . | K19: . | L19: 470 | M19: 400 | N19: 451 | O19: 451 | P19: 447 | Q19: 464 | R19: 487 | S19: 327 | T19: 395 | U19: 186 | V19: 223 | W19: 155 | X19: 135 | Y19: 149 | Z19: 123
D20: Podíly na celkovém počtu dětí mateřských škol
E21: v tom | F21: mladší než 2 roky | J21: 0.0806453866 | K21: . | L21: . | M21: . | N21: . | O21: . | P21: . | Q21: . | R21: . | S21: . | T21: . | U21: 0.002004880265 | V21: 0.002537014 | W21: 0.00261958401 | X21: 0.002089558822 | Y21: 0.001786813863 | Z21: 0.001315396441
F22: 2leté1) | K22: 0.08632568214 | L22: 0.08451607645 | M22: 0.0787438818 | N22: 0.08142338098 | O22: 0.08747430542 | P22: 0.09808667295 | Q22: 0.1005441067 | R22: 0.09154183247 | S22: 0.09017045775 | T22: 0.09115488712 | U22: 0.1010900346 | V22: 0.112665743 | W22: 0.1207187036 | X22: 0.1232591604 | Y22: 0.1229437896 | Z22: 0.1165770096
F23: 3leté | J23: 0.2498079207 | K23: 0.2470635503 | L23: 0.2463614038 | M23: 0.2526391025 | N23: 0.2541158128 | O23: 0.2620018566 | P23: 0.2590188785 | Q23: 0.2655502538 | R23: 0.2700330783 | S23: 0.2578032398 | T23: 0.2540515117 | U23: 0.2505964315 | V23: 0.2467327778 | W23: 0.2520039818 | X23: 0.2529468844 | Y23: 0.2557782811 | Z23: 0.2592016092
F24: 4leté | J24: 0.2909233778 | K24: 0.2945044195 | L24: 0.2918992285 | M24: 0.2963117382 | N24: 0.2948790154 | O24: 0.2922021086 | P24: 0.2914607271 | Q24: 0.2824212141 | R24: 0.2916142368 | S24: 0.3013602754 | T24: 0.2920031466 | U24: 0.2912517036 | V24: 0.2817419378 | W24: 0.2760710652 | X24: 0.2754303168 | Y24: 0.2745040904 | Z24: 0.2778966811
F25: 5leté | J25: 0.3002060488 | K25: 0.2976382629 | L25: 0.3043521403 | M25: 0.3008419201 | N25: 0.2997074116 | O25: 0.2915158146 | P25: 0.2876359838 | Q25: 0.2884100398 | R25: 0.2830746144 | S25: 0.2945447875 | T25: 0.30590426 | U25: 0.2992358604 | V25: 0.2993812626 | W25: 0.2919291995 | X25: 0.2891778496 | Y25: 0.2879491775 | Z25: 0.2864330559
F26: 6leté | J26: 0.07841726619 | K26: 0.07446808511 | L26: 0.07120556518 | M26: 0.07006190898 | N26: 0.06832558363 | O26: 0.06531065579 | P26: 0.06237420703 | Q26: 0.06166238604 | R26: 0.06231442744 | S26: 0.05519839702 | T26: 0.05579974035 | U26: 0.05531510896 | V26: 0.05633423254 | W26: 0.05623006014 | X26: 0.056724079 | Y26: 0.05662825475 | Z26: 0.05823917744
F27: starší než 6 let | J27: . | K27: . | L27: 0.001665585808 | M27: 0.001401448397 | N27: 0.001548795648 | O27: 0.001495258935 | P27: 0.001423530611 | Q27: 0.001411999562 | R27: 0.001421810634 | S27: 0.0009228424677 | T27: 0.001086454253 | U27: 0.0005059806367 | V27: 0.0006070323197 | W27: 0.0004274058122 | X27: 0.0003721509775 | Y27: 0.0004095927164 | Z27: 0.0003370703381
D28: Komentáře: | Z28: Zdroj: databáze MŠMT
D29: 1) | E29: Do školního roku 2013/14 děti mladší 3 let.
U39: =U13/U$12 -> 0.002004880265 | V39: =V13/V$12 -> 0.002537014 | W39: 0.00261958401 | X39: 0.002089558822 | Y39: 0.001786813863 | Z39: 0.001315396441
U40: =U14/U$12 -> 0.1010900346 | V40: 0.112665743 | W40: 0.1207187036 | X40: 0.1232591604 | Y40: 0.1229437896 | Z40: 0.1165770096
U41: =U15/U$12 -> 0.2505964315 | V41: 0.2467327778 | W41: 0.2520039818 | X41: 0.2529468844 | Y41: 0.2557782811 | Z41: 0.2592016092
U42: =U16/U$12 -> 0.2912517036 | V42: 0.2817419378 | W42: 0.2760710652 | X42: 0.2754303168 | Y42: 0.2745040904 | Z42: 0.2778966811
U43: =U17/U$12 -> 0.2992358604 | V43: 0.2993812626 | W43: 0.2919291995 | X43: 0.2891778496 | Y43: 0.2879491775 | Z43: 0.2864330559
U44: =U18/U$12 -> 0.05531510896 | V44: 0.05633423254 | W44: 0.05623006014 | X44: 0.056724079 | Y44: 0.05662825475 | Z44: 0.05823917744
U45: =U19/U$12 -> 0.0005059806367 | V45: 0.0006070323197 | W45: 0.0004274058122 | X45: 0.0003721509775 | Y45: 0.0004095927164 | Z45: 0.0003370703381
W47: 111765 | X47: 113433 | Y47: 114916 | Z47: 114505
W48: 111538 | X48: 112137 | Y48: 113801 | Z48: 115264
W49: 108974 | X49: 111825 | Y49: 112507 | Z49: 114188
W50: 110013 | X50: 109155 | Y50: 112082 | Z50: 112815
W51: 109815 | X51: 110169 | Y51: 109347 | Z51: 112333
W52: 119954 | X52: 109960 | Y52: 110396 | Z52: 109624
W53: 121624 | X53: 120074 | Y53: 110124 | Z53: 110642
W54: =W13/W47 -> 0.008499977632 | X54: =X13/X47 -> 0.006682358749 | Y54: 0.005656305475 | Z54: =Z13/Z47 -> 0.004191956683
W55: 0.3925030035 | X55: =X14/X48 -> 0.3987354754 | Y55: 0.393001819 | Z55: =Z14/Z48 -> 0.3690657968
W56: 0.8386404096 | X56: 0.8205499665 | Y56: 0.8270240963 | Z56: =Z15/Z49 -> 0.8283269696
W57: 0.9100560843 | X57: 0.9153405707 | Y57: 0.8909369926 | Z57: =Z16/Z50 -> 0.8988786952
W58: 0.9640668397 | X58: 0.9521825559 | Y58: 0.9579503782 | Z58: =Z17/Z51 -> 0.930465669
W59: 0.1699984994 | X59: 0.1871316842 | Y59: 0.1866009638 | Z59: =Z18/Z52 -> 0.1938626578
W60: 0.001274419522 | X60: 0.001124306678 | Y60: 0.001353020232 | Z60: =Z19/Z53 -> 0.00111169357

Sheet B3.5
D4: Tab. B3.5: | H4: Mateřské školy – podíl na celkovém počtu dětí
D5: v populačním ročníku ve školním roce 2009/10 až 2019/20
D7: Věk | J7: 2003/04 | K7: 2004/05 | L7: 2005/06 | M7: 2006/07 | N7: 2007/08 | O7: 2008/09 | P7: 2009/10 | Q7: 2010/11 | R7: 2011/12 | S7: 2012/13 | T7: 2013/14 | U7: 2014/15 | V7: 2015/16 | W7: 2016/17 | X7: 2017/18 | Y7: 2018/19 | Z7: 2019/20
J11: 1) | K11: 1)
E12: mladší než 2 roky | K12: . | L12: . | M12: . | N12: . | O12: . | P12: . | Q12: . | R12: . | S12: . | T12: . | U12: 0.006806867825 | V12: 0.008382425687 | W12: 0.008499977632 | X12: 0.006682358749 | Y12: 0.005656305475 | Z12: 0.004191956683
E13: 2leté1) | J13: 0.2529216547 | K13: 0.2653286945 | L13: 0.2535455338 | M13: 0.2297258622 | N13: 0.2302209966 | O13: 0.2476952252 | P13: 0.267407536 | Q13: 0.2738454398 | R13: 0.2585233129 | S13: 0.2673634355 | T13: 0.3032474128 | U13: 0.3390880638 | V13: 0.3807635695 | W13: 0.3925030035 | X13: 0.3987354754 | Y13: 0.393001819 | Z13: 0.3690657968
E14: 3leté | J14: 0.8003983529 | K14: 0.7732690373 | L14: 0.7457759851 | M14: 0.7659655832 | N14: 0.7533878374 | O14: 0.7645533615 | P14: 0.7614616198 | Q14: 0.7558837542 | R14: 0.7525058578 | S14: 0.7523906007 | T14: 0.7723859379 | U14: 0.8411249087 | V14: 0.824989988 | W14: 0.8386404096 | X14: 0.8205499665 | Y14: 0.8270240963 | Z14: 0.8283269696
E15: 4leté | J15: 0.9436867028 | K15: 0.941833702 | L15: 0.8995686125 | M15: 0.9067351402 | N15: 0.909001408 | O15: 0.8944163673 | P15: 0.8829556308 | Q15: 0.8672740865 | R15: 0.8439641406 | S15: 0.8685509781 | T15: 0.8743164449 | U15: 0.8941307144 | V15: 0.9438010651 | W15: 0.9100560843 | X15: 0.9153405707 | Y15: 0.8909369926 | Z15: 0.8988786952
E16: 5leté | J16: 0.9604473693 | K16: 0.9636890151 | L16: 0.9580772191 | M16: 0.9368187918 | N16: 0.9324436942 | O16: 0.9276467796 | P16: 0.9142533227 | Q16: 0.912298096 | R16: 0.8914458562 | S16: 0.8816066225 | T16: 0.9044973975 | U16: 0.9052380365 | V16: 0.9176936877 | W16: 0.9640668397 | X16: 0.9521825559 | Y16: 0.9579503782 | Z16: 0.930465669
E17: 6leté2) | J17: 0.249944343 | K17: 0.2377950823 | L17: 0.2269446672 | M17: 0.2228798163 | N17: 0.2162303153 | O17: 0.2097892416 | P17: 0.2061792726 | Q17: 0.204666431 | R17: 0.2073179023 | S17: 0.1797289226 | T17: 0.1713675105 | U17: 0.1652552704 | V17: 0.170218541 | W17: 0.1699984994 | X17: 0.1871316842 | Y17: 0.1866009638 | Z17: 0.1938626578
E18: starší než 6 let | J18: . | K18: . | L18: 0.005235543772 | M18: 0.004514112243 | N18: 0.005006994249 | O18: 0.004886822915 | P18: 0.004748095982 | Q18: 0.004874307985 | R18: 0.004959923411 | S18: 0.003175034712 | T18: 0.003630648186 | U18: 0.00156997797 | V18: 0.001811550053 | W18: 0.001274419522 | X18: 0.001124306678 | Y18: 0.001353020232 | Z18: 0.00111169357
D19: Komentáře: | Z19: Zdroj: databáze MŠMT, ČSÚ
D20: 1) | E20: Do školního roku 2013/14 děti mladší 3 let. Od školního roku 2014/15 se vykazují 2leté děti.

Sheet B3.6
D4: Tab. B3.6: | H4: Mateřské školy – školy
B5: 0 | D5: ve školním roce 2009/10 až 2019/20 – podle území
D7: Území | J7: 2003/04 | K7: 2004/05 | L7: 2005/06 | M7: 2006/07 | N7: 2007/08 | O7: 2008/09 | P7: 2009/10 | Q7: 2010/11 | R7: 2011/12 | S7: 2012/13 | T7: 2013/14 | U7: 2014/15 | V7: 2015/16 | W7: 2016/17 | X7: 2017/18 | Y7: 2018/19 | Z7: 2019/20
J11: 1),2) | K11: 1),2)
E12: Česká republika | H12: CZ0 | J12: 5067 | K12: 4994 | L12: 4834 | M12: 4815 | N12: 4808 | O12: 4809 | P12: 4826 | Q12: 4880 | R12: 4931 | S12: 5011 | T12: 5085 | U12: 5158 | V12: 5209 | W12: 5209 | X12: 5269 | Y12: 5287 | Z12: 5304
E13: Praha | H13: CZ01 | J13: 336 | K13: 333 | L13: 321 | M13: 320 | N13: 321 | O13: 320 | P13: 322 | Q13: 331 | R13: 340 | S13: 352 | T13: 372 | U13: 395 | V13: 408 | W13: 410 | X13: 426 | Y13: 427 | Z13: 427
F14: Hlavní město Praha | H14: CZ010 | J14: 336 | K14: 333 | L14: 321 | M14: 320 | N14: 321 | O14: 320 | P14: 322 | Q14: 331 | R14: 340 | S14: 352 | T14: 372 | U14: 395 | V14: 408 | W14: 410 | X14: 426 | Y14: 427 | Z14: 427
E15: Střední Čechy | H15: CZ02 | J15: 637 | K15: 633 | L15: 626 | M15: 629 | N15: 629 | O15: 635 | P15: 649 | Q15: 663 | R15: 684 | S15: 704 | T15: 731 | U15: 740 | V15: 755 | W15: 762 | X15: 785 | Y15: 789 | Z15: 797
F16: Středočeský kraj | H16: CZ020 | J16: 637 | K16: 633 | L16: 626 | M16: 629 | N16: 629 | O16: 635 | P16: 649 | Q16: 663 | R16: 684 | S16: 704 | T16: 731 | U16: 740 | V16: 755 | W16: 762 | X16: 785 | Y16: 789 | Z16: 797
E17: Jihozápad | H17: CZ03 | J17: 581 | K17: 572 | L17: 556 | M17: 552 | N17: 550 | O17: 550 | P17: 550 | Q17: 556 | R17: 561 | S17: 566 | T17: 573 | U17: 582 | V17: 585 | W17: 586 | X17: 593 | Y17: 597 | Z17: 603
F18: Jihočeský kraj | H18: CZ031 | J18: 312 | K18: 307 | L18: 296 | M18: 295 | N18: 294 | O18: 294 | P18: 294 | Q18: 296 | R18: 298 | S18: 301 | T18: 305 | U18: 310 | V18: 312 | W18: 314 | X18: 319 | Y18: 321 | Z18: 324
F19: Plzeňský kraj | H19: CZ032 | J19: 269 | K19: 265 | L19: 260 | M19: 257 | N19: 256 | O19: 256 | P19: 256 | Q19: 260 | R19: 263 | S19: 265 | T19: 268 | U19: 272 | V19: 273 | W19: 272 | X19: 274 | Y19: 276 | Z19: 279
E20: Severozápad | H20: CZ04 | J20: 489 | K20: 483 | L20: 446 | M20: 443 | N20: 441 | O20: 445 | P20: 448 | Q20: 448 | R20: 450 | S20: 464 | T20: 471 | U20: 478 | V20: 483 | W20: 480 | X20: 481 | Y20: 483 | Z20: 484
F21: Karlovarský kraj | H21: CZ041 | J21: 146 | K21: 144 | L21: 121 | M21: 118 | N21: 116 | O21: 119 | P21: 120 | Q21: 120 | R21: 120 | S21: 122 | T21: 121 | U21: 121 | V21: 123 | W21: 123 | X21: 124 | Y21: 124 | Z21: 124
F22: Ústecký kraj | H22: CZ042 | J22: 343 | K22: 339 | L22: 325 | M22: 325 | N22: 325 | O22: 326 | P22: 328 | Q22: 328 | R22: 330 | S22: 342 | T22: 350 | U22: 357 | V22: 360 | W22: 357 | X22: 357 | Y22: 359 | Z22: 360
E23: Severovýchod | H23: CZ05 | J23: 864 | K23: 860 | L23: 829 | M23: 820 | N23: 815 | O23: 813 | P23: 817 | Q23: 833 | R23: 837 | S23: 849 | T23: 854 | U23: 860 | V23: 866 | W23: 866 | X23: 866 | Y23: 867 | Z23: 868
F24: Liberecký kraj | H24: CZ051 | J24: 229 | K24: 224 | L24: 214 | M24: 213 | N24: 213 | O24: 215 | P24: 216 | Q24: 228 | R24: 232 | S24: 239 | T24: 236 | U24: 237 | V24: 238 | W24: 238 | X24: 236 | Y24: 235 | Z24: 235
F25: Královéhradecký kraj | H25: CZ052 | J25: 312 | K25: 314 | L25: 304 | M25: 297 | N25: 294 | O25: 291 | P25: 294 | Q25: 296 | R25: 296 | S25: 298 | T25: 304 | U25: 307 | V25: 310 | W25: 311 | X25: 314 | Y25: 314 | Z25: 314
F26: Pardubický kraj | H26: CZ053 | J26: 323 | K26: 322 | L26: 311 | M26: 310 | N26: 308 | O26: 307 | P26: 307 | Q26: 309 | R26: 309 | S26: 312 | T26: 314 | U26: 316 | V26: 318 | W26: 317 | X26: 316 | Y26: 318 | Z26: 319
E27: Jihovýchod | H27: CZ06 | J27: 945 | K27: 936 | L27: 910 | M27: 909 | N27: 907 | O27: 905 | P27: 903 | Q27: 907 | R27: 917 | S27: 924 | T27: 929 | U27: 940 | V27: 942 | W27: 945 | X27: 953 | Y27: 957 | Z27: 959
F28: Kraj Vysočina | H28: CZ063 | J28: 294 | K28: 293 | L28: 277 | M28: 276 | N28: 277 | O28: 275 | P28: 273 | Q28: 274 | R28: 276 | S28: 279 | T28: 282 | U28: 283 | V28: 285 | W28: 286 | X28: 286 | Y28: 288 | Z28: 288
F29: Jihomoravský kraj | H29: CZ064 | J29: 651 | K29: 643 | L29: 633 | M29: 633 | N29: 630 | O29: 630 | P29: 630 | Q29: 633 | R29: 641 | S29: 645 | T29: 647 | U29: 657 | V29: 657 | W29: 659 | X29: 667 | Y29: 669 | Z29: 671
E30: Střední Morava | H30: CZ07 | J30: 713 | K30: 689 | L30: 672 | M30: 672 | N30: 674 | O30: 671 | P30: 669 | Q30: 675 | R30: 678 | S30: 683 | T30: 684 | U30: 688 | V30: 694 | W30: 693 | X30: 698 | Y30: 704 | Z30: 704
F31: Olomoucký kraj | H31: CZ071 | J31: 393 | K31: 372 | L31: 362 | M31: 363 | N31: 365 | O31: 362 | P31: 360 | Q31: 367 | R31: 369 | S31: 373 | T31: 374 | U31: 376 | V31: 378 | W31: 378 | X31: 382 | Y31: 387 | Z31: 388
F32: Zlínský kraj | H32: CZ072 | J32: 320 | K32: 317 | L32: 310 | M32: 309 | N32: 309 | O32: 309 | P32: 309 | Q32: 308 | R32: 309 | S32: 310 | T32: 310 | U32: 312 | V32: 316 | W32: 315 | X32: 316 | Y32: 317 | Z32: 316
E33: Moravskoslezsko | H33: CZ08 | J33: 502 | K33: 488 | L33: 474 | M33: 470 | N33: 471 | O33: 470 | P33: 468 | Q33: 467 | R33: 464 | S33: 469 | T33: 471 | U33: 475 | V33: 476 | W33: 467 | X33: 467 | Y33: 463 | Z33: 462
F34: Moravskoslezský kraj | H34: CZ080 | J34: 502 | K34: 488 | L34: 474 | M34: 470 | N34: 471 | O34: 470 | P34: 468 | Q34: 467 | R34: 464 | S34: 469 | T34: 471 | U34: 475 | V34: 476 | W34: 476 | X34: 467 | Y34: 463 | Z34: 462
Z35: Zdroj: databáze MŠMT

Sheet B3.7
D4: Tab. B3.7: | H4: Mateřské školy – děti
B5: 0 | D5: ve školním roce 2009/10 až 2019/20 – podle území
D7: Území | J7: 2003/04 | K7: 2004/05 | L7: 2005/06 | M7: 2006/07 | N7: 2007/08 | O7: 2008/09 | P7: 2009/10 | Q7: 2010/11 | R7: 2011/12 | S7: 2012/13 | T7: 2013/14 | U7: 2014/15 | V7: 2015/16 | W7: 2016/17 | X7: 2017/18 | Y7: 2018/19 | Z7: 2019/20
J11: 1) | K11: 1)
E12: Česká republika | H12: CZ0 | J12: 286340 | K12: 286230 | L12: 282183 | M12: 285419 | N12: 291194 | O12: 301620 | P12: 314008 | Q12: 328612 | R12: 342521 | S12: 354340 | T12: 363568 | U12: 367603 | V12: 367361 | W12: 362653 | X12: 362756 | Y12: 363776 | Z12: 364909
E13: Praha | H13: CZ01 | J13: 28255 | K13: 28731 | L13: 28497 | M13: 29052 | N13: 29859 | O13: 31308 | P13: 33403 | Q13: 35264 | R13: 37078 | S13: 38457 | T13: 40405 | U13: 41637 | V13: 42371 | W13: 42711 | X13: 43147 | Y13: 43288 | Z13: 43260
F14: Hlavní město Praha | H14: CZ010 | J14: 28255 | K14: 28731 | L14: 28497 | M14: 29052 | N14: 29859 | O14: 31308 | P14: 33403 | Q14: 35264 | R14: 37078 | S14: 38457 | T14: 40405 | U14: 41637 | V14: 42371 | W14: 42711 | X14: 43147 | Y14: 43288 | Z14: 43260
E15: Střední Čechy | H15: CZ02 | J15: 31217 | K15: 31463 | L15: 31738 | M15: 32673 | N15: 33818 | O15: 35343 | P15: 36954 | Q15: 39420 | R15: 42317 | S15: 44430 | T15: 46815 | U15: 48455 | V15: 49663 | W15: 49771 | X15: 50315 | Y15: 50797 | Z15: 51347
F16: Středočeský kraj | H16: CZ020 | J16: 31217 | K16: 31463 | L16: 31738 | M16: 32673 | N16: 33818 | O16: 35343 | P16: 36954 | Q16: 39420 | R16: 42317 | S16: 44430 | T16: 46815 | U16: 48455 | V16: 49663 | W16: 49771 | X16: 50315 | Y16: 50797 | Z16: 51347
E17: Jihozápad | H17: CZ03 | J17: 34010 | K17: 33930 | L17: 33315 | M17: 33697 | N17: 34248 | O17: 35643 | P17: 37242 | Q17: 39248 | R17: 40604 | S17: 41997 | T17: 42721 | U17: 43069 | V17: 42750 | W17: 41918 | X17: 41749 | Y17: 41923 | Z17: 41862
F18: Jihočeský kraj | H18: CZ031 | J18: 18851 | K18: 18891 | L18: 18317 | M18: 18574 | N18: 18926 | O18: 19658 | P18: 20447 | Q18: 21430 | R18: 22055 | S18: 22942 | T18: 23292 | U18: 23419 | V18: 23351 | W18: 23065 | X18: 23045 | Y18: 23060 | Z18: 23017
F19: Plzeňský kraj | H19: CZ032 | J19: 15159 | K19: 15039 | L19: 14998 | M19: 15123 | N19: 15322 | O19: 15985 | P19: 16795 | Q19: 17818 | R19: 18549 | S19: 19055 | T19: 19429 | U19: 19650 | V19: 19399 | W19: 18853 | X19: 18704 | Y19: 18863 | Z19: 18845
E20: Severozápad | H20: CZ04 | J20: 31084 | K20: 30857 | L20: 30295 | M20: 30680 | N20: 31045 | O20: 31835 | P20: 32594 | Q20: 33547 | R20: 34600 | S20: 35605 | T20: 36018 | U20: 35943 | V20: 35250 | W20: 34204 | X20: 34351 | Y20: 34076 | Z20: 33837
F21: Karlovarský kraj | H21: CZ041 | J21: 8336 | K21: 8302 | L21: 8079 | M21: 8151 | N21: 8164 | O21: 8346 | P21: 8617 | Q21: 8916 | R21: 9278 | S21: 9542 | T21: 9565 | U21: 9454 | V21: 9271 | W21: 8856 | X21: 8927 | Y21: 8954 | Z21: 8766
F22: Ústecký kraj | H22: CZ042 | J22: 22748 | K22: 22555 | L22: 22216 | M22: 22529 | N22: 22881 | O22: 23489 | P22: 23977 | Q22: 24631 | R22: 25322 | S22: 26063 | T22: 26453 | U22: 26489 | V22: 25979 | W22: 25348 | X22: 25424 | Y22: 25122 | Z22: 25071
E23: Severovýchod | H23: CZ05 | J23: 44031 | K23: 44223 | L23: 43722 | M23: 43780 | N23: 44737 | O23: 46293 | P23: 47892 | Q23: 50127 | R23: 51896 | S23: 53520 | T23: 54510 | U23: 54790 | V23: 54301 | W23: 53080 | X23: 52601 | Y23: 52485 | Z23: 52756
F24: Liberecký kraj | H24: CZ051 | J24: 12660 | K24: 12723 | L24: 12563 | M24: 12601 | N24: 12878 | O24: 13406 | P24: 13718 | Q24: 14329 | R24: 14866 | S24: 15400 | T24: 15675 | U24: 15745 | V24: 15510 | W24: 15178 | X24: 14992 | Y24: 15078 | Z24: 15228
F25: Královéhradecký kraj | H25: CZ052 | J25: 16027 | K25: 16243 | L25: 15924 | M25: 15856 | N25: 16310 | O25: 16813 | P25: 17545 | Q25: 18308 | R25: 19036 | S25: 19548 | T25: 19859 | U25: 19986 | V25: 19876 | W25: 19340 | X25: 19222 | Y25: 19009 | Z25: 19137
F26: Pardubický kraj | H26: CZ053 | J26: 15344 | K26: 15257 | L26: 15235 | M26: 15323 | N26: 15549 | O26: 16074 | P26: 16629 | Q26: 17490 | R26: 17994 | S26: 18572 | T26: 18976 | U26: 19059 | V26: 18915 | W26: 18562 | X26: 18387 | Y26: 18398 | Z26: 18391
E27: Jihovýchod | H27: CZ06 | J27: 47224 | K27: 46736 | L27: 45758 | M27: 46188 | N27: 47116 | O27: 48608 | P27: 50493 | Q27: 52897 | R27: 55073 | S27: 57166 | T27: 58530 | U27: 59326 | V27: 59501 | W27: 58950 | X27: 59167 | Y27: 59388 | Z27: 59761
F28: Kraj Vysočina | H28: CZ063 | J28: 15445 | K28: 15342 | L28: 14743 | M28: 14722 | N28: 14946 | O28: 15427 | P28: 15878 | Q28: 16520 | R28: 17001 | S28: 17677 | T28: 18032 | U28: 17996 | V28: 17982 | W28: 17821 | X28: 17866 | Y28: 17770 | Z28: 17965
F29: Jihomoravský kraj | H29: CZ064 | J29: 31779 | K29: 31394 | L29: 31015 | M29: 31466 | N29: 32170 | O29: 33181 | P29: 34615 | Q29: 36377 | R29: 38072 | S29: 39489 | T29: 40498 | U29: 41330 | V29: 41519 | W29: 41129 | X29: 41301 | Y29: 41618 | Z29: 41796
E30: Střední Morava | H30: CZ07 | J30: 35755 | K30: 35822 | L30: 35229 | M30: 35452 | N30: 35885 | O30: 36991 | P30: 38622 | Q30: 39973 | R30: 41620 | S30: 42867 | T30: 43724 | U30: 43628 | V30: 43258 | W30: 42600 | X30: 42240 | Y30: 42579 | Z30: 42930
F31: Olomoucký kraj | H31: CZ071 | J31: 18883 | K31: 18965 | L31: 18637 | M31: 18720 | N31: 19036 | O31: 19594 | P31: 20296 | Q31: 21037 | R31: 22028 | S31: 22878 | T31: 23340 | U31: 23298 | V31: 22980 | W31: 22628 | X31: 22350 | Y31: 22667 | Z31: 22931
F32: Zlínský kraj | H32: CZ072 | J32: 16872 | K32: 16857 | L32: 16592 | M32: 16732 | N32: 16849 | O32: 17397 | P32: 18326 | Q32: 18936 | R32: 19592 | S32: 19989 | T32: 20384 | U32: 20330 | V32: 20278 | W32: 19972 | X32: 19890 | Y32: 19912 | Z32: 19999
E33: Moravskoslezsko | H33: CZ08 | J33: 34764 | K33: 34468 | L33: 33629 | M33: 33897 | N33: 34486 | O33: 35599 | P33: 36808 | Q33: 38136 | R33: 39333 | S33: 40298 | T33: 40845 | U33: 40755 | V33: 40267 | W33: 39419 | X33: 39186 | Y33: 39240 | Z33: 39156
F34: Moravskoslezský kraj | H34: CZ080 | J34: 34764 | K34: 34468 | L34: 33629 | M34: 33897 | N34: 34486 | O34: 35599 | P34: 36808 | Q34: 38136 | R34: 39333 | S34: 40298 | T34: 40845 | U34: 40755 | V34: 40267 | W34: 39419 | X34: 39186 | Y34: 39240 | Z34: 39156
Z35: Zdroj: databáze MŠMT

Sheet B3.8
D4: Tab. B3.8: | H4: Mateřské školy – zdravotně postižené a znevýhodněné děti
B5: 6 | D5: ve školním roce 2009/10 až 2019/20
J7: 2003/04 | K7: 2004/05 | L7: 2005/06 | M7: 2006/07 | N7: 2007/08 | O7: 2008/09 | P7: 2009/10 | Q7: 2010/11 | R7: 2011/12 | S7: 2012/13 | T7: 2013/14 | U7: 2014/15 | V7: 2015/16 | W7: 2016/17 | X7: 2017/18 | Y7: 2018/19 | Z7: 2019/20
J11: 1) | K11: 1)
E12: Zdravotně postižené a znevýhodněné děti celkem | J12: 8587 | K12: 8288 | L12: 8284 | M12: 8468 | N12: 8533 | O12: 8673 | P12: 8970 | Q12: 9236 | R12: 9510 | S12: 9767 | T12: 10063 | U12: 10312 | V12: 10536 | W12: 10486 | X12: 10788 | Y12: 11245 | Z12: 11695
E13: v tom | F13: děti ve speciálních třídách MŠ1) | J13: 6586 | K13: 6369 | L13: 6727 | M13: 6877 | N13: 6850 | O13: 6980 | P13: 7190 | Q13: 7325 | R13: 7478 | S13: 7611 | T13: 7764 | U13: 7828 | V13: 7788 | W13: 7457 | X13: 7014 | Y13: 6878 | Z13: 7001
F14: individuálně integrované děti v běžných třídách MŠ | J14: 2001 | K14: 1919 | L14: 1557 | M14: 1591 | N14: 1683 | O14: 1693 | P14: 1780 | Q14: 1911 | R14: 2032 | S14: 2156 | T14: 2299 | U14: 2484 | V14: 2748 | W14: 3029 | X14: 3774 | Y14: 4367 | Z14: 4694
D15: Podíly na celkovém počtu dětí v mateřských školách
E16: Zdravotně postižené a znevýhodněné děti celkem | J16: 0.02998882447 | K16: 0.0289557349 | L16: 0.02935683581 | M16: 0.02966866256 | N16: 0.0293034884 | O16: 0.02875472449 | P16: 0.02856615118 | Q16: 0.02810609473 | R16: 0.027764721 | S16: 0.02756392166 | T16: 0.02767845355 | U16: 0.02805200175 | V16: 0.02868023552 | W16: 0.02891469256 | X16: 0.02973899811 | Y16: 0.03091187984 | Z16: 0.03204908621
E17: Děti ve speciálních třídách MŠ1) | J17: 0.02300062862 | K17: 0.02225133634 | L17: 0.02383913985 | M17: 0.02409440156 | N17: 0.02352383634 | O17: 0.02314170148 | P17: 0.0228975058 | Q17: 0.02229072584 | R17: 0.02183223802 | S17: 0.0214793701 | T17: 0.02135501474 | U17: 0.02129471196 | V17: 0.02119985518 | W17: 0.02056235575 | X17: 0.01933531079 | Y17: 0.01890723962 | Z17: 0.01918560518
E18: Individuálně integrované děti v běžných třídách MŠ | J18: 0.006988195851 | K18: 0.006704398561 | L18: 0.005517695963 | M18: 0.005574260999 | N18: 0.005779652053 | O18: 0.005613023009 | P18: 0.005668645385 | Q18: 0.005815368885 | R18: 0.005932482972 | S18: 0.006084551561 | T18: 0.006323438806 | U18: 0.006757289794 | V18: 0.007480380334 | W18: 0.008352336807 | X18: 0.01040368733 | Y18: 0.01200464022 | Z18: 0.01286348103
D19: Komentáře: | Z19: Zdroj: databáze MŠMT
D20: 1) | E20: Speciální třídy včetně tříd ve školách zřízených pro děti se SVP.

Sheet B3.9
D4: Tab. B3.9: | H4: Mateřské školy – poměrové ukazatele
B5: 0 | D5: ve školním roce 2009/10 až 2019/20
D7: Poměrové ukazatele | J7: 2003/04 | K7: 2004/05 | L7: 2005/06 | M7: 2006/07 | N7: 2007/08 | O7: 2008/09 | P7: 2009/10 | Q7: 2010/11 | R7: 2011/12 | S7: 2012/13 | T7: 2013/14 | U7: 2014/15 | V7: 2015/16 | W7: 2016/17 | X7: 2017/18 | Y7: 2018/19 | Z7: 2019/20
J11: 1),2),3) | K11: 1),2),3)
E12: Průměrný počet dětí na školu | J12: 56.51075587 | K12: 57.31477773 | L12: 58.37463798 | M12: 59.27705088 | N12: 60.56447587 | O12: 62.71990019 | P12: 65.06589308 | Q12: 67.33852459 | R12: 69.46278645 | S12: 70.71243265 | T12: 71.49813176 | U12: 71.26851493 | V12: 70.52428489 | W12: 69.62046458 | X12: 68.84721959 | Y12: 68.80574995 | Z12: 68.79883107
E13: Průměrný počet dětí na třídu | J13: 22.37555677 | K13: 22.55733312 | L13: 22.74018857 | M13: 22.84448535 | N13: 22.9322728 | O13: 23.13924051 | P13: 23.34284865 | Q13: 23.49242208 | R13: 23.65313169 | S13: 23.66684478 | T13: 23.62365172 | U13: 23.3710344 | V13: 23.18027511 | W13: 22.87165742 | X13: 22.71626276 | Y13: 22.64541833 | Z13: 22.39392452
E14: Průměrný počet tříd na školu | J14: 2.525557529 | K14: 2.540849019 | L14: 2.567025238 | M14: 2.594807892 | N14: 2.641014975 | O14: 2.710542732 | P14: 2.787401575 | Q14: 2.866393443 | R14: 2.93672683 | S14: 2.987826781 | T14: 3.026548673 | U14: 3.049437767 | V14: 3.042426569 | W14: 3.043962373 | X14: 3.030745872 | Y14: 3.038396066 | Z14: 3.072209653
E15: Průměrný počet dětí na učitele (přepočtený počet) | J15: . | K15: . | L15: 12.55005648 | M15: 12.76031957 | N15: 12.80294403 | O15: 12.79797011 | P15: 12.77270453 | Q15: 12.76817631 | R15: 12.78989268 | S15: 12.7739805 | T15: 12.71972851 | U15: 12.55328958 | V15: 12.44709255 | W15: 12.2395923 | X15: 11.97088096 | Y15: 11.89556846 | Z15: 11.27215608
E16: Průměrný přepočtený počet učitelů na třídu | J16: . | K16: . | L16: 1.811959062 | M16: 1.790275332 | N16: 1.791171838 | O16: 1.808039893 | P16: 1.827557241 | Q16: 1.839919931 | R16: 1.849361232 | S16: 1.852738445 | T16: 1.857244964 | U16: 1.86174582 | V16: 1.862304392 | W16: 1.868661705 | X16: 1.897626652 | Y16: 1.903685259 | Z16: 1.986658484
D17: Komentáře: | Z17: Zdroj: databáze MŠMT
D18: 1) | E18: Ve školním roce 2004/05 včetně škol při zdravotnických zařízeních.
D19: 2) | E19: Ve školním roce 2004/05 jsou školy započteny podle počtu jednotlivých pracovišť, od školního roku 2005/06 je uveden počet škol bez ohledu na počet jejich pracovišť.
D20: 3) | E20: Ve školním roce 2004/05 nejsou údaje o učitelích dostupné v potřebném členění. Od roku 2005/06 jsou údaje o učitelích včetně škol při zdravotnických zařízeních.

Sheet B3.10
D4: Tab. B3.10: | H4: Mateřské školy – třídy a děti
B5: 12 | D5: ve školním roce 2009/10 až 2019/20 – podle druhu provozu
D7: Druh provozu | J7: 2003/04 | K7: 2004/05 | L7: 2005/06 | M7: 2006/07 | N7: 2007/08 | O7: 2008/09 | P7: 2009/10 | Q7: 2010/11 | R7: 2011/12 | S7: 2012/13 | T7: 2013/14 | U7: 2014/15 | V7: 2015/16 | W7: 2016/17 | X7: 2017/18 | Y7: 2018/19 | Z7: 2019/20
J11: 1),2) | K11: 1),2)
D12: Třídy
E13: Celkem | J13: 12797 | K13: 12689 | L13: 12409 | M13: 12494 | N13: 12698 | O13: 13035 | P13: 13452 | Q13: 13988 | R13: 14481 | S13: 14972 | T13: 15390 | U13: 15729 | V13: 15848 | W13: 15856 | X13: 15969 | Y13: 16064 | Z13: 16295
E14: v tom | F14: s internátním provozem | J14: . | K14: . | L14: 38 | M14: 28 | N14: 11 | O14: 10 | P14: 10 | Q14: 10 | R14: 9 | S14: 9 | T14: 8 | U14: 9 | V14: 10 | W14: 9 | X14: 12 | Y14: 9 | Z14: 10
F15: s celodenním provozem | J15: . | K15: . | L15: 12143 | M15: 12289 | N15: 12507 | O15: 12887 | P15: 13339 | Q15: 13880 | R15: 14380 | S15: 14887 | T15: 15315 | U15: 15663 | V15: 15795 | W15: 15800 | X15: 15915 | Y15: 16024 | Z15: 16245
F16: s polodenním provozem | J16: . | K16: . | L16: 228 | M16: 177 | N16: 180 | O16: 138 | P16: 103 | Q16: 98 | R16: 92 | S16: 76 | T16: 67 | U16: 57 | V16: 43 | W16: 47 | X16: 42 | Y16: 31 | Z16: 40
D17: Děti
E18: Celkem | J18: 286340 | K18: 286230 | L18: 282183 | M18: 285419 | N18: 291194 | O18: 301620 | P18: 314008 | Q18: 328612 | R18: 342521 | S18: 354340 | T18: 363568 | U18: 367603 | V18: 367361 | W18: 362653 | X18: 362756 | Y18: 363776 | Z18: 364909
E19: v tom | F19: ve třídách s internátním provozem | J19: . | K19: . | L19: 368 | M19: 318 | N19: 197 | O19: 195 | P19: 193 | Q19: 190 | R19: 182 | S19: 185 | T19: 169 | U19: 195 | V19: 204 | W19: 207 | X19: 217 | Y19: 190 | Z19: 219
F20: ve třídách s celodenním provozem | J20: . | K20: . | L20: 278545 | M20: 282809 | N20: 288634 | O20: 299641 | P20: 312682 | Q20: 327377 | R20: 341345 | S20: 353353 | T20: 362688 | U20: 366825 | V20: 366729 | W20: 361977 | X20: 362159 | Y20: 363297 | Z20: 364295
F21: ve třídách s polodenním provozem | J21: . | K21: . | L21: 3270 | M21: 2292 | N21: 2363 | O21: 1784 | P21: 1133 | Q21: 1045 | R21: 994 | S21: 802 | T21: 711 | U21: 583 | V21: 428 | W21: 469 | X21: 380 | Y21: 289 | Z21: 395
D22: Komentáře: | Z22: Zdroj: databáze MŠMT
D23: 1) | E23: Ve školním roce 2004/05 včetně MŠ při zdravotnických zařízeních.
D24: 2) | E24: Ve školním roce 2004/05 nejsou údaje o druhu provozu dostupné v potřebném členění.

Sheet B3.11
D4: Tab. B3.11: | H4: Mateřské školy – doplňkové údaje o MŠ
B5: 0 | D5: ve školním roce 2009/10 až 2019/20
D7: Doplňkové údaje | J7: 2003/04 | K7: 2004/05 | L7: 2005/06 | M7: 2006/07 | N7: 2007/08 | O7: 2008/09 | P7: 2009/10 | Q7: 2010/11 | R7: 2011/12 | S7: 2012/13 | T7: 2013/14 | U7: 2014/15 | V7: 2015/16 | W7: 2016/17 | X7: 2017/18 | Y7: 2018/19 | Z7: 2019/20
J11: 1)
E12: Nástupy do mateřské školy po 30. 9. | J12: 19107 | K12: 13948 | L12: 13783 | M12: 14494 | N12: 15151 | O12: 14036 | P12: 13873 | Q12: 13615 | R12: 14095 | S12: 13848 | T12: 14140 | U12: 15346 | V12: 14119 | W12: 14921 | X12: 16281 | Y12: . | Z12: .
E13: Dodatečné odklady povinné školní docházky | J13: 1391 | K13: 1279 | L13: 1078 | M13: 1109 | N13: 1017 | O13: 966 | P13: 920 | Q13: 822 | R13: 867 | S13: 928 | T13: 1165 | U13: 1102 | V13: 1189 | W13: 1138 | X13: 1230 | Y13: . | Z13: .
E14: Odchody do MŠ pro děti se SVP | J14: 365 | K14: 309 | L14: 224 | M14: 255 | N14: 260 | O14: 191 | P14: 233 | Q14: 222 | R14: 223 | S14: . | T14: . | U14: . | V14: . | W14: . | X14: . | Y14: . | Z14: .
E15: Ukončení docházky do mateřské školy | J15: 1391 | K15: 1279 | L15: 88369 | M15: 89691 | N15: 90856 | O15: 92285 | P15: 93935 | Q15: 97628 | R15: 102484 | S15: 106421 | T15: 114101 | U15: 115045 | V15: 113238 | W15: 108079 | X15: 107566 | Y15: . | Z15: .
E16: Žádosti, jimž nebylo vyhověno | J16: . | K16: . | L16: 6810 | M16: 9570 | N16: 13409 | O16: 19996 | P16: 29632 | Q16: 39483 | R16: 49186 | S16: 58939 | T16: 60281 | U16: 50800 | V16: 41041 | W16: 31991 | X16: 33237 | Y16: 32804 | Z16: 36277
E17: Žádosti, jimž bylo vyhověno | L17: . | M17: . | N17: . | O17: . | P17: . | Q17: . | R17: . | S17: . | T17: . | U17: 128552 | V17: 126206 | W17: 123010 | X17: 121196 | Y17: 120937 | Z17: 121595
G18: z toho děti, které nastoupily | J18: . | K18: . | L18: . | M18: . | N18: . | O18: . | P18: . | Q18: . | R18: . | S18: . | T18: . | U18: 123958 | V18: 121306 | W18: 117909 | X18: 116062 | Y18: 115825 | Z18: 115077
Z19: Zdroj: databáze MŠMT

Sheet B3.12
D4: Tab. B3.12: | H4: Mateřské školy – struktura učitelů
D5: v letech 2011 až 2019 – podle nejvyššího dosaženého vzdělání
D7: Nejvyšší dosažené vzdělání | J7: 2011 | K7: 2012 | L7: 2013 | M7: 2014 | N7: 2015 | O7: 2016 | P7: 2017 | Q7: 2018 | R7: 2019
D12: Učitelé (bez ředitelů a zástupců ředitele/řídících pracovníků)
E13: Střední a střední vzdělání s výučním listem | J13: 0.01494083477 | K13: 0.01379668634 | L13: 0.01353673562 | M13: 0.01343741726 | N13: 0.009959253286 | O13: 0.009355282247 | P13: 0.009236570477 | Q13: 0.009144898454 | R13: 0.01028507598
E14: Střední vzdělání s maturitní zkouškou | J14: 0.8393596077 | K14: 0.8202101451 | L14: 0.8027161771 | M14: 0.7733995127 | N14: 0.755105946 | O14: 0.7399460352 | P14: 0.7277770083 | Q14: 0.7193051173 | R14: 0.7069072572
E15: Vyšší odborné vzdělání | J15: 0.02728272707 | K15: 0.03055374383 | L15: 0.0328754172 | M15: 0.04122948164 | N15: 0.04583735683 | O15: 0.0477027041 | P15: 0.05205412543 | Q15: 0.0532084869 | R15: 0.05624984644
E16: Vysokoškolské – bakalářské | J16: 0.0622104754 | K16: 0.07004862704 | L16: 0.07742668354 | M16: 0.09275290965 | N16: 0.1042881476 | O16: 0.1142786253 | P16: 0.1218903349 | Q16: 0.1287055615 | R16: 0.1341752556
E17: Vysokoškolské – magisterské | J17: 0.05586036582 | K17: 0.06489733528 | L17: 0.07273121984 | M17: 0.07837666942 | N17: 0.08368810848 | O17: 0.0876141641 | P17: 0.08790283558 | Q17: 0.08846691308 | R17: 0.09115101887
E18: Vysokoškolské – doktorské | J18: 0.0003459892444 | K18: 0.0004934119923 | L18: 0.000713717897 | M18: 0.0008040092881 | N18: 0.00112118774 | O18: 0.001103189071 | P18: 0.001139079824 | Q18: 0.001169022702 | R18: 0.001231545964
R19: Zdroj: ISP

Sheet B3.13
D4: Tab. B3.13: | H4: Mateřské školy – struktura učitelů
D5: v letech 2011 až 2019 – podle věku
D7: Věk | J7: 2011 | K7: 2012 | L7: 2013 | M7: 2014 | N7: 2015 | O7: 2016 | P7: 2017 | Q7: 2018 | R7: 2019
D12: Učitelé (bez ředitelů a zástupců ředitele/řídících pracovníků)
E13: do 24 let | J13: 0.05772271577 | K13: 0.05980538626 | L13: 0.05886867971 | M13: 0.06198800461 | N13: 0.0618171234 | O13: 0.06064205264 | P13: 0.06152087737 | Q13: 0.06016268482 | R13: 0.06601300116
E14: 25–29 let | J14: 0.07281787649 | K14: 0.08141481865 | L14: 0.0873086175 | M14: 0.09016271408 | N14: 0.096104456 | O14: 0.09688565638 | P14: 0.09576465679 | Q14: 0.09648222246 | R14: 0.09682873252
E15: 30–34 let | J15: 0.06462144217 | K15: 0.06408215755 | L15: 0.06473566158 | M15: 0.06467352663 | N15: 0.06659922765 | O15: 0.06695608818 | P15: 0.06934932283 | Q15: 0.07076896483 | R15: 0.07316466282
E16: 35–39 let | J16: 0.1057614107 | K16: 0.1051891986 | L16: 0.1075132358 | M16: 0.1071587478 | N16: 0.09979656347 | O16: 0.09303148254 | P16: 0.08988198369 | Q16: 0.08801894927 | R16: 0.08928690511
E17: 40–44 let | J17: 0.1189888014 | K17: 0.1115210112 | L17: 0.110560902 | M17: 0.1148033026 | N17: 0.1223676573 | O17: 0.1268966373 | P17: 0.1314190078 | Q17: 0.1362784489 | R17: 0.1336200733
E18: 45–49 let | J18: 0.2236223984 | K18: 0.2080895608 | L18: 0.1800254785 | M18: 0.1556470735 | N18: 0.1319043312 | O18: 0.1172891639 | P18: 0.1118116093 | Q18: 0.1121655493 | R18: 0.1172321121
E19: 50–54 let | J19: 0.1966866054 | K19: 0.1970965306 | L19: 0.2013719955 | M19: 0.2044004738 | N19: 0.2064377027 | O19: 0.2072833452 | P19: 0.1946180571 | Q19: 0.170138289 | R19: 0.1432628488
E20: 55–59 let | J20: 0.1273795908 | K20: 0.1380839427 | L20: 0.1515550325 | M20: 0.1600558882 | N20: 0.1671723799 | O20: 0.1737746397 | P20: 0.1778544798 | Q20: 0.1885127486 | R20: 0.1860354102
E21: 60–64 let | J21: 0.02431266538 | K21: 0.02649377023 | L21: 0.0290433597 | M21: 0.03249333139 | N21: 0.03883706046 | O21: 0.0470408736 | P21: 0.05472654868 | Q21: 0.0634419903 | R21: 0.07703841988
E22: 65 a více let | J22: 0.008086493398 | K22: 0.008223673495 | L22: 0.009017037296 | M22: 0.00861693742 | N22: 0.008963497898 | O22: 0.01020006054 | P22: 0.01303531418 | Q22: 0.0140301525 | R22: 0.01751783419
R23: Zdroj: ISP

Sheet B3.14
D4: Tab. B3.14: | H4: Mateřské školy – přepočtené počty zaměstnanců
B5: 12 | D5: v letech 2009 až 2019
J7: 2003 | K7: 2004 | L7: 2005 | M7: 2006 | N7: 2007 | O7: 2008 | P7: 2009 | Q7: 2010 | R7: 2011 | S7: 2012 | T7: 2013 | U7: 2014 | V7: 2015 | W7: 2016 | X7: 2017 | Y7: 2018 | Z7: 2019
D12: Všichni zřizovatelé (bez jiných resortů)
E13: Zaměstnanci celkem | J13: 31805.206 | K13: 31373.626 | L13: 30895.692 | M13: 30579.183 | N13: 30884.529 | O13: 31624.638 | P13: 32668.805 | Q13: 34099.727 | R13: 35376.874 | S13: 36598.816 | T13: 37883.651 | U13: 39134.308 | V13: 40046.604 | W13: 40703.773 | X13: 42392.534 | Y13: 44068.6556 | Z13: 46113.5777
F14: z toho učitelé1) | J14: 23421.596 | K14: 23161.936 | L14: 22843.412 | M14: 22563.59 | N14: 22764.67 | O14: 23378.281 | P14: 24192.999 | Q14: 25307.734 | R14: 26371.601 | S14: 27365.211 | T14: 28308.481 | U14: 29156.565 | V14: 29662.49 | W14: 29784.758 | X14: 30208.621 | Y14: 30802.1488 | Z14: 31983.73
D15: Komentáře: | Z15: Zdroj: databáze MŠMT
D16: 1) | E16: Včetně vedoucích zaměstnanců.

Sheet B3.15
D4: Tab. B3.15: | H4: Mateřské školy – průměrné měsíční mzdy zaměstnanců
B5: 36 | D5: v letech 2009 až 2019
J7: 2003 | K7: 2004 | L7: 2005 | M7: 2006 | N7: 2007 | O7: 2008 | P7: 2009 | Q7: 2010 | R7: 2011 | S7: 2012 | T7: 2013 | U7: 2014 | V7: 2015 | W7: 2016 | X7: 2017 | Y7: 2018 | Z7: 2019
D11: Všichni zřizovatelé (bez jiných resortů)
D12: Nominální mzda (v běžných cenách)
E13: Zaměstnanci celkem | J13: 13475.34217 | K13: 14326.428 | L13: 15156.88244 | M13: 16115 | N13: 16973 | O13: 17588.85723 | P13: 18856.60546 | Q13: 18386.07993 | R13: 18918.54853 | S13: 20603.75899 | T13: 20678.76142 | U13: 20966.0039 | V13: 21297.71393 | W13: 22300.27876 | X13: 23852.17189 | Y13: 26359.8 | Z13: 29884.62865
F14: z toho učitelé1) | J14: 15142.96369 | K14: 16183.75512 | L14: 17209.30228 | M14: 18266 | N14: 19216 | O14: 19866.16569 | P14: 21036.65038 | Q14: 20298.60419 | R14: 21024.7699 | S14: 23326.58533 | T14: 23398.84352 | U14: 23720.195 | V14: 24108.01293 | W14: 25299.67334 | X14: 27089.12522 | Y14: 30020.6 | Z14: 34154.64001
D15: Reálná mzda (ve stálých cenách roku 2015)
E16: Zaměstnanci celkem | J16: =J13/J19*100 -> 14110.30594 | K16: 14603.90214 | L16: 15156.88244 | M16: 19415.66265 | N16: 19898.00703 | O16: 19392.34535 | P16: 20563.36474 | Q16: 19769.97842 | R16: 19956.27482 | S16: 21045.71909 | T16: 20824.53315 | U16: 21029.09117 | V16: 21297.71393 | W16: =W13/W19*100 -> 22145.26192 | X16: =X13/X19*100 -> 23134.98729 | Y16: =Y13/Y19*100 -> 25033.04843 | Z16: =Z13/Z19*100 -> 27594.30161
F17: z toho učitelé | J17: =J14/J19*100 -> 15856.50648 | K17: =K14/K19*100 -> 16497.20196 | L17: 17209.30228 | M17: 22007.22892 | N17: 22527.54982 | O17: 21903.15953 | P17: 22940.73105 | Q17: 21826.45612 | R17: 22178.02732 | S17: 23826.9513 | T17: 23563.79005 | U17: 23791.56971 | V17: 24108.01293 | W17: =W14/W19*100 -> 25123.80669 | X17: =X14/X19*100 -> 26274.61224 | Y17: =Y14/Y19*100 -> 28509.59164 | Z17: =Z14/Z19*100 -> 31537.06372
D18: Index spotřebitelských cen a meziroční inflace
E19: Index spotřebitelských cen (rok 2015 = 100) | J19: 95.5 | K19: 98.1 | L19: 100 | M19: 83 | N19: 85.3 | O19: 90.7 | P19: 91.7 | Q19: 93 | R19: 94.8 | S19: 97.9 | T19: 99.3 | U19: 99.7 | V19: 100 | W19: 100.7 | X19: 103.1 | Y19: 105.3 | Z19: 108.3
E20: Meziroční inflace | J20: 0.001 | K20: 0.028 | L20: 0.019 | M20: 0.025 | N20: 0.028 | O20: 0.063 | P20: 0.01 | Q20: 0.015 | R20: 0.019 | S20: 0.033 | T20: 0.014 | U20: 0.004 | V20: 0.003 | W20: 0.007 | X20: 0.025 | Y20: 0.021 | Z20: 0.028
D21: Komentáře: | Z21: Zdroj: databáze MŠMT
D22: 1) | E22: Včetně vedoucích zaměstnanců.

Sheet B3.16
D4: Tab. B3.16: | H4: Předškolní vzdělávání – výdaje
D5: na předškolní vzdělávání v letech 2009 až 2019
Z6: v tis. Kč
J7: 2003 | K7: 2004 | L7: 2005 | M7: 2006 | N7: 2007 | O7: 2008 | P7: 2009 | Q7: 2010 | R7: 2011 | S7: 2012 | T7: 2013 | U7: 2014 | V7: 2015 | W7: 2016 | X7: 2017 | Y7: 2018 | Z7: 2019
D12: Výdaje na předškolní vzdělávání z rozpočtů kapitoly 333-MŠMT; kapitoly 700-Obce a DSO, KÚ
E13: Celkem | J13: 9764372.45 | K13: 10290055.28 | L13: 11034349.75 | M13: 11974973.94 | N13: =N14+N15 -> 12677778.41 | O13: =O14+O15 -> 14094485.24 | P13: 15983396.37 | Q13: 16283334.95 | R13: 16279366.76 | S13: 16933537.22 | T13: =T14+T15 -> 17846305 | U13: 19317698.83 | V13: 19325226.8 | W13: 18811578.89 | X13: 21529333.77 | Y13: =Y14+Y15 -> 25391291.71 | Z13: 28862448.42
E14: v tom | F14: neinvestiční výdaje | J14: 9303740.82 | K14: 9625859.71 | L14: 10179056.77 | M14: 10765314.52 | N14: =11389227.41-1.02 -> 11389226.39 | O14: =12068719.67-36.78 -> 12068682.89 | P14: 13272038.39 | Q14: 13423421.74 | R14: 13826749.48 | S14: 14872397.34 | T14: =T20+T26 -> 15134157.5 | U14: 15981096.52 | V14: =V20+V26 -> 16357800 | W14: =W20+W26 -> 17226816.82 | X14: =X20+X26 -> 19355147.18 | Y14: =Y20+Y26 -> 22243376.51 | Z14: =Z20+Z26 -> 26090280.2
F15: investiční výdaje | J15: 460631.63 | K15: 664195.57 | L15: 855292.98 | M15: 1209659.42 | N15: 1288552.02 | O15: 2025802.35 | P15: 2711357.98 | Q15: 2859913.21 | R15: 2452695.15 | S15: 2061139.88 | T15: 2712147.495 | U15: 3336602.306 | V15: =V21+V27 -> 2967426.795 | W15: =W21+W27 -> 1584762.075 | X15: =X21+X27 -> 2174186.598 | Y15: 3147915.199 | Z15: 2772168.226
E16: v % | F16: neinvestiční výdaje | J16: 0.9528252704 | K16: 0.9354526723 | L16: 0.9224881394 | M16: 0.8989843798 | N16: =N14/N13 -> 0.8983613707 | O16: =O14/O13 -> 0.8562698591 | P16: 0.8303640905 | Q16: 0.824365634 | R16: 0.8493419728 | S16: 0.8782806065 | T16: =T14/T13 -> 0.8480275051 | U16: 0.8272774446 | V16: 0.8464480223 | W16: 0.9157560307 | X16: 0.899012825 | Y16: =Y14/Y13 -> 0.876023826 | Z16: 0.9039524234
F17: investiční výdaje | J17: 0.0471747296 | K17: 0.06454732768 | L17: 0.07751186063 | M17: 0.1010156202 | N17: =N15/N13 -> 0.1016386293 | O17: =O15/O13 -> 0.1437301409 | P17: 0.1696359095 | Q17: 0.175634366 | R17: 0.1506628105 | S17: 0.1217193935 | T17: =T15/T13 -> 0.1519724949 | U17: 0.1727225554 | V17: 0.1535519777 | W17: 0.08424396932 | X17: 0.100987175 | Y17: =Y15/Y13 -> 0.123976174 | Z17: 0.0960475766
D18: Výdaje na předškolní vzdělávání z rozpočtu kapitoly 333-MŠMT
E19: Celkem | J19: 33312 | K19: 32557 | L19: 39223 | M19: 39659 | N19: 43965.63 | O19: 47959 | P19: 53504 | Q19: 58059 | R19: 66320 | S19: 76304 | T19: 82660 | U19: =U20+U21 -> 92978.877 | V19: 93238 | W19: 117242.6604 | X19: 669086.1286 | Y19: 721813.5626 | Z19: 986478.6893
E20: v tom | F20: neinvestiční výdaje | J20: 33312 | K20: 32557 | L20: 39223 | M20: 39659 | N20: 43965.63 | O20: 47959 | P20: 53504 | Q20: 58059 | R20: 66320 | S20: 76304 | T20: 82660 | U20: 92978.877 | V20: 93238 | W20: 117242.6604 | X20: 669086.1286 | Y20: 721813.5626 | Z20: 986095.9893
F21: investiční výdaje | J21: 0 | K21: 0 | L21: 0 | M21: 0 | N21: 0 | O21: 0 | P21: 0 | Q21: 0 | R21: 0 | S21: 0 | T21: 0 | U21: 0 | V21: 0 | W21: 0 | X21: 0 | Y21: 0 | Z21: 382.7
E22: v % | F22: neinvestiční výdaje | J22: 1 | K22: 1 | L22: 1 | M22: 1 | N22: 1 | O22: 1 | P22: 1 | Q22: 1 | R22: 1 | S22: 1 | T22: 1 | U22: 1 | V22: 1 | W22: =W20/W19 -> 1 | X22: =X20/X19 -> 1 | Y22: =Y20/Y19 -> 1 | Z22: =Z20/Z19 -> 0.9996120545
F23: investiční výdaje | J23: 0 | K23: 0 | L23: 0 | M23: 0 | N23: 0 | O23: 0 | P23: 0 | Q23: 0 | R23: 0 | S23: 0 | T23: 0 | U23: 0 | V23: 0 | W23: =W21/W19 -> 0 | X23: =X21/X19 -> 0 | Y23: =Y21/Y19 -> 0 | Z23: =Z21/Z19 -> 0.0003879455321
D24: Výdaje na předškolní vzdělávání z rozpočtu kapitoly 700-Obce a DSO, KÚ1)
E25: Celkem | J25: 9731060.45 | K25: 10257498.28 | L25: 10995126.75 | M25: 11935314.94 | N25: =N26+N27 -> 12633812.78 | O25: =O26+O27 -> 14046526.24 | P25: 15929892.37 | Q25: 16225275.95 | R25: 16213046.76 | S25: 16857233.22 | T25: =T26+T27 -> 17763645 | U25: 19224719.95 | V25: 19231988.8 | W25: 18694336.23 | X25: 20860247.65 | Y25: =Y26+Y27 -> 24669478.15 | Z25: 27875969.73
E26: v tom | F26: neinvestiční výdaje | J26: 9270428.82 | K26: 9593302.71 | L26: 10139833.77 | M26: 10725655.52 | N26: =11345261.78-1.02 -> 11345260.76 | O26: =12020760.67-36.78 -> 12020723.89 | P26: 13218534.39 | Q26: 13365362.74 | R26: 13760351.61 | S26: 14796093.34 | T26: 15051497.5 | U26: 15888117.65 | V26: 16264562 | W26: 17109574.16 | X26: 18686061.05 | Y26: 21521562.95 | Z26: 25104184.21
F27: investiční výdaje | J27: 460631.63 | K27: 664195.57 | L27: 855292.98 | M27: 1209659.42 | N27: 1288552.02 | O27: 2025802.35 | P27: 2711357.98 | Q27: 2859913.21 | R27: 2452695.15 | S27: 2061139.88 | T27: 2712147.495 | U27: 3336602.306 | V27: 2967426.795 | W27: 1584762.075 | X27: 2174186.598 | Y27: 3147915.199 | Z27: 2771785.526
E28: v % | F28: neinvestiční výdaje | J28: 0.9526637788 | K28: 0.935247801 | L28: 0.9222116307 | M28: 0.8986487222 | N28: =N26/N25 -> 0.8980076686 | O28: =O26/O25 -> 0.8557791218 | P28: 0.8297943315 | Q28: 0.8237371605 | R28: 0.8487208983 | S28: 0.8777296456 | T28: =T26/T25 -> 0.8473203278 | U28: 0.8264420853 | V28: 0.8457035918 | W28: 0.9152276895 | X28: 0.8957736919 | Y28: =Y26/Y25 -> 0.8723963604 | Z28: 0.9005672071
F29: investiční výdaje | J29: 0.0473362212 | K29: 0.06475219901 | L29: 0.07778836929 | M29: 0.1013512778 | N29: =N27/N25 -> 0.1019923314 | O29: =O27/O25 -> 0.1442208782 | P29: 0.1702056685 | Q29: 0.1762628395 | R29: 0.1512791017 | S29: 0.1222703544 | T29: =T27/T25 -> 0.1526796722 | U29: 0.1735579147 | V29: 0.1542964082 | W29: 0.08477231047 | X29: 0.1042263081 | Y29: =Y27/Y25 -> 0.1276036396 | Z29: 0.09943279292
D30: Podíl výdajů na předškolní vzdělávání na celkových výdajích na školství a podíl na HDP
E31: Výdaje na školství celkem2),3) | J31: 114.2477725 | K31: 121.3480397 | L31: 128.5541745 | M31: 141.2484394 | N31: 151.5849897 | O31: 149.7997268 | P31: 162.803504 | Q31: 161.8748019 | R31: 172.7687959 | S31: 170.3742654 | T31: 171.7249628 | U31: 177.5906341 | V31: 181.6089812 | W31: 172.2724 | X31: 193.6421335 | Y31: 221.5246672 | Z31: 247.9172318
E32: Podíl výdajů na MŠ na celkových výdajích | J32: =J13/J31/1000000 -> 0.08546663306 | K32: 0.0847978699 | L32: 0.0858342391 | M32: 0.08477951323 | N32: 0.08363478755 | O32: 0.0940888581 | P32: 0.09817599731 | Q32: 0.1005921537 | R32: 0.09422631371 | S32: 0.09939022878 | T32: 0.1039237669 | U32: 0.1087765632 | V32: =V13/V31/1000000 -> 0.1064111845 | W32: =W13/W31/1000000 -> 0.1091967076 | X32: =X13/X31/1000000 -> 0.1111810399 | Y32: =Y13/Y31/1000000 -> 0.1146206065 | Z32: =Z13/Z31/1000000 -> 0.1164196947
E33: HDP v mld. Kč v běžných cenách | J33: 2688.107 | K33: 3057.66 | L33: 3257.972 | M33: 3507.131 | N33: 3840.117 | O33: 4024.117 | P33: 3930.409 | Q33: 3962.464 | R33: 4033.755 | S33: 4059.912 | T33: 4098.128 | U33: 4313.789 | V33: 4595.783 | W33: 4773.24 | X33: 5055.029 | Y33: 5408.766 | Z33: 5748.668
E34: Výdaje na MŠ v % HDP | J34: =J13/1000000/J33 -> 0.003632434442 | K34: =K13/1000000/K33 -> 0.003365336656 | L34: 0.00338687679 | M34: 0.003414464398 | N34: 0.003301404205 | O34: 0.003502503839 | P34: 0.004066598761 | Q34: 0.004109396312 | R34: =R13/1000000/R33 -> 0.004035784712 | S34: 0.004170912379 | T34: 0.00435474563 | U34: 0.004478127889 | V34: 0.004204991141 | W34: =W13/1000000/W33 -> 0.003941050291 | X34: =X13/1000000/X33 -> 0.004258993128 | Y34: 0.004694470367 | Z34: 0.005020719308
D35: Dotace soukromým a církevním školám z kapitoly 333-MŠMT
E36: Celkem | J36: 108814.669 | K36: 112101.517 | L36: 124653.41 | M36: 127234.643 | N36: 136097.082 | O36: . | P36: . | Q36: . | R36: . | S36: . | T36: . | U36: . | V36: . | W36: . | X36: . | Y36: . | Z36: .
E37: v tom | F37: soukromým školám4) | J37: 85271.669 | K37: 89720.517 | L37: 96762.41 | M37: 98861.643 | N37: 105893.082 | O37: . | P37: . | Q37: . | R37: . | S37: . | T37: . | U37: . | V37: . | W37: . | X37: . | Y37: . | Z37: .
F38: církevním školám 5) | J38: 23543 | K38: 22381 | L38: 27891 | M38: 28373 | N38: 30204 | O38: 34135 | P38: 36623 | Q38: 41322 | R38: 49716 | S38: 59833 | T38: 67056 | U38: 74626 | V38: 76957 | W38: 82887 | X38: 94775.914 | Y38: 112577.9 | Z38: 122852.3
D39: Komentáře: | Y39: Zdroj: Státní závěrečný účet, ZÚ - kapitola 333-MŠMT; 700-Obce a DSO, KÚ; ČSÚ; monitor.statnipokladna.cz
D40: 1) | E40: Údaje neobsahují z daných tříd následující položky: 5321, 5323, 5329, 5344, 5345, 5349, 5366, 5367, 5641, 5642, 5649, 6341, 6342, 6349, 6441, 6442, 6449.
D41: 2) | E41: Celkové výdaje kapitoly 333-MŠMT a kapitoly 700-Obce (část vzdělávání). Nejsou zahrnuty výdaje Ministerstva obrany.
D42: 3) | E42: Meziroční snížení výdajů v roce 2008 je dáno aplikací zákona č. 26/2008 Sb. a z něj vyplývajícím nepřeváděním nevyčerpaných prostředků OSS do rezervních fondů, a tudíž jejich nezahrnutím do čerpání.
D43: 4) | E43: Od roku 2008 nejsou k dispozici údaje o dotacích soukromým školám v potřebném členění.
D44: 5) | E44: Jedná se o uvolněné prostředky odpovídající hodnotám, na co bylo příjemcům dotačních prostředků vystavena rozhodnutí o poskytnutí dotace a co příjemcům dotačních prostředků skutečně v součtu za všechna rozhodnutí o poskytnutí dotace v příslušném roce odešlo.

Sheet GB1
D4: Obr. B1: | G4: Předškolní výchova – děti v předškolním vzdělávání, populace 3–5letých dětí ve školním roce 2009/10 až 2019/20
J10: 2003/04 | K10: 2004/05 | L10: 2005/06 | M10: 2007/08 | N10: 2008/09 | O10: 2009/10 | P10: 2010/11 | Q10: 2011/12 | R10: 2012/13 | S10: 2013/14 | T10: 2014/15 | U10: 2015/16 | V10: 2016/17 | W10: 2017/18 | X10: 2018/19 | Y10: 2019/20
I11: běžné třídy | J11: 276068 | K11: 276409 | L11: 275010 | M11: 283951 | N11: 294266 | O11: 306489 | P11: 320931 | Q11: 334741 | R11: 346458 | S11: 355592 | T11: 359616 | U11: 359456 | V11: 355140 | W11: 355682 | X11: 356842 | Y11: 357878
I12: speciální třídy včetně škol pro žáky se SVP | J12: 10272 | K12: 9821 | L12: 7173 | M12: 7243 | N12: 7354 | O12: 7519 | P12: 7681 | Q12: 7780 | R12: 7882 | S12: 7976 | T12: 7987 | U12: 7905 | V12: 7513 | W12: 7074 | X12: 6934 | Y12: 7031
I13: přípravné třídy pro děti se sociálním znevýhodněním a přípravný stupeň základní školy speciální | J13: 2348 | K13: 2216 | L13: 1851 | M13: 2189 | N13: 2279 | O13: 2663 | P13: 3170 | Q13: 3329 | R13: 3764 | S13: 3784 | T13: 4087 | U13: 4776 | V13: 4800 | W13: 3635 | X13: 3421 | Y13: 4573
I14: populace 3–5 let | J14: 267143 | K14: 269357 | L14: 274423 | M14: 286278 | N14: 296684 | O14: 308417 | P14: 326341 | Q14: 350029 | R14: 362743 | S14: 363968 | T14: 350777 | U14: 339377 | V14: 328802 | W14: 331149 | X14: 333936 | Y14: 339336
Y38: Zdroj: databáze MŠMT, ČSÚ

Sheet GB2
D4: Obr. B2: | F4: Mateřské školy – struktura dětí ve školní roce 2009/10 až 2019/20 – podle věku
I10: 2003/04 | J10: 2004/05 | K10: 2005/06 | L10: 2007/08 | M10: 2008/09 | N10: 2009/10 | O10: 2010/11 | P10: 2011/12 | Q10: 2012/13 | R10: 2013/14 | S10: 2014/15 | T10: 2015/16 | U10: 2016/17 | V10: 2017/18 | W10: 2018/19 | X10: 2019/20
H11: do 3 let | I11: 0.0806453866 | J11: 0.08632568214 | K11: 0.08451607645 | L11: 0.08142338098 | M11: 0.08747430542 | N11: 0.09808667295 | O11: 0.1005441067 | P11: 0.09154183247 | Q11: 0.09017045775 | R11: 0.09115488712 | S11: 0.1030949149 | T11: 0.115202757 | U11: 0.1233382876 | V11: 0.1253487192 | W11: 0.1247306034 | X11: 0.1178924061
H12: 3leté | I12: 0.2498079207 | J12: 0.2470635503 | K12: 0.2463614038 | L12: 0.2541158128 | M12: 0.2620018566 | N12: 0.2590188785 | O12: 0.2655502538 | P12: 0.2700330783 | Q12: 0.2578032398 | R12: 0.2540515117 | S12: 0.2505964315 | T12: 0.2467327778 | U12: 0.2520039818 | V12: 0.2529468844 | W12: 0.2557782811 | X12: 0.2592016092
H13: 4leté | I13: 0.2909233778 | J13: 0.2945044195 | K13: 0.2918992285 | L13: 0.2948790154 | M13: 0.2922021086 | N13: 0.2914607271 | O13: 0.2824212141 | P13: 0.2916142368 | Q13: 0.3013602754 | R13: 0.2920031466 | S13: 0.2912517036 | T13: 0.2817419378 | U13: 0.2760710652 | V13: 0.2754303168 | W13: 0.2745040904 | X13: 0.2778966811
H14: 5leté | I14: 0.3002060488 | J14: 0.2976382629 | K14: 0.3043521403 | L14: 0.2997074116 | M14: 0.2915158146 | N14: 0.2876359838 | O14: 0.2884100398 | P14: 0.2830746144 | Q14: 0.2945447875 | R14: 0.30590426 | S14: 0.2992358604 | T14: 0.2993812626 | U14: 0.2919291995 | V14: 0.2891778496 | W14: 0.2879491775 | X14: 0.2864330559
H15: starší než 5 let | I15: 0.07841726619 | J15: 0.07446808511 | K15: 0.07287115099 | L15: 0.06987437928 | M15: 0.06680591473 | N15: 0.06379773764 | O15: 0.0630743856 | P15: 0.06373623807 | Q15: 0.05612123949 | R15: 0.0568861946 | S15: 0.0558210896 | T15: 0.05694126486 | U15: 0.05665746595 | V15: 0.05709622997 | W15: 0.05703784747 | X15: 0.05857624778
X37: Zdroj: databáze MŠMT

Sheet GB3
D4: Obr. B3: | G4: Mateřské školy – struktura škol ve školním roce 2009/10 až 2019/20 – podle počtu dětí v mateřské škole
J10: 2003/04 | K10: 2004/05 | L10: 2005/06 | M10: 2007/08 | N10: 2008/09 | O10: 2009/10 | P10: 2010/11 | Q10: 2011/12 | R10: 2012/13 | S10: 2013/14 | T10: 2014/15 | U10: 2015/16 | V10: 2016/17 | W10: 2017/18 | X10: 2018/19 | Y10: 2019/20
I11: 0–50 | J11: 0.6224590487 | K11: 0.6165398478 | L11: 0.6065370294 | M11: 0.5913061564 | N11: 0.5768351009 | O11: 0.5600911728 | P11: 0.5405737705 | Q11: 0.5284932062 | R11: 0.5194571942 | S11: 0.5168141593 | T11: 0.5211322218 | U11: 0.5267805721 | V11: 0.536187368 | W11: 0.5391914974 | X11: 0.5434083601 | Y11: 0.5409125189
I12: 51–100 | J12: 0.2595223998 | K12: 0.2599118943 | L12: 0.2596193628 | M12: 0.2591514143 | N12: 0.2628405074 | O12: 0.2637795276 | P12: 0.2694672131 | Q12: 0.2693165686 | R12: 0.2684094991 | S12: 0.2666666667 | T12: 0.2626987204 | U12: 0.2583989249 | V12: 0.2509118833 | W12: 0.2516606567 | X12: 0.2466427085 | Y12: 0.2537707391
I13: 101–150 | J13: 0.07558713243 | K13: 0.07929515419 | L13: 0.08605709557 | M13: 0.09712978369 | N13: 0.1025161156 | O13: 0.1100290095 | P13: 0.1153688525 | Q13: 0.121476374 | R13: 0.1259229695 | S13: 0.1272369715 | T13: 0.1254362156 | U13: 0.1255519294 | V13: 0.1257439048 | W13: 0.1226039097 | X13: 0.1223756384 | Y13: 0.1185897436
I14: 151 a více | J14: 0.04282612986 | K14: 0.04425310372 | L14: 0.04778651221 | M14: 0.05241264559 | N14: 0.05780827615 | O14: 0.0661002901 | P14: 0.07459016393 | Q14: 0.08071385115 | R14: 0.08621033726 | S14: 0.08928220256 | T14: 0.09073284219 | U14: 0.08926857362 | V14: 0.08715684392 | W14: 0.08654393623 | X14: 0.08757329298 | Y14: 0.08672699849
Y36: Zdroj: databáze MŠMT

Sheet GB4
D4: Obr. B4: | G4: Mateřské školy – všichni zřizovatelé – přepočtené počty zaměstnanců a učitelů,
D5: průměrné nominální a reálné mzdy v letech 2009 až 2019
I10: zam.
J11: 2003 | K11: 2004 | L11: 2005 | M11: 2007 | N11: 2008 | O11: 2009 | P11: 2010 | Q11: 2011 | R11: 2012 | S11: 2013 | T11: 2014 | U11: 2015 | V11: 2016 | W11: 2017 | X11: 2018 | Y11: 2019
I12: nominální mzdy | J12: 13475.34217 | K12: 14326.428 | L12: 15156.88244 | M12: 16973 | N12: 17588.85723 | O12: ='B3.15'!P13 -> 18856.60546 | P12: ='B3.15'!Q13 -> 18386.07993 | Q12: ='B3.15'!R13 -> 18918.54853 | R12: ='B3.15'!S13 -> 20603.75899 | S12: ='B3.15'!T13 -> 20678.76142 | T12: ='B3.15'!U13 -> 20966.0039 | U12: ='B3.15'!V13 -> 21297.71393 | V12: ='B3.15'!W13 -> 22300.27876 | W12: ='B3.15'!X13 -> 23852.17189 | X12: ='B3.15'!Y13 -> 26359.8 | Y12: ='B3.15'!Z13 -> 29884.62865
I13: reálné mzdy | J13: 14110.30594 | K13: 14603.90214 | L13: 15156.88244 | M13: 19898.00703 | N13: 19392.34535 | O13: ='B3.15'!P16 -> 20563.36474 | P13: ='B3.15'!Q16 -> 19769.97842 | Q13: ='B3.15'!R16 -> 19956.27482 | R13: ='B3.15'!S16 -> 21045.71909 | S13: ='B3.15'!T16 -> 20824.53315 | T13: ='B3.15'!U16 -> 21029.09117 | U13: ='B3.15'!V16 -> 21297.71393 | V13: ='B3.15'!W16 -> 22145.26192 | W13: ='B3.15'!X16 -> 23134.98729 | X13: ='B3.15'!Y16 -> 25033.04843 | Y13: ='B3.15'!Z16 -> 27594.30161
I14: počty | J14: 31.805206 | K14: 31.373626 | L14: 30.895692 | M14: 30.884529 | N14: 31.624638 | O14: ='B3.14'!P13/1000 -> 32.668805 | P14: ='B3.14'!Q13/1000 -> 34.099727 | Q14: ='B3.14'!R13/1000 -> 35.376874 | R14: ='B3.14'!S13/1000 -> 36.598816 | S14: ='B3.14'!T13/1000 -> 37.883651 | T14: ='B3.14'!U13/1000 -> 39.134308 | U14: ='B3.14'!V13/1000 -> 40.046604 | V14: ='B3.14'!W13/1000 -> 40.703773 | W14: ='B3.14'!X13/1000 -> 42.392534 | X14: ='B3.14'!Y13/1000 -> 44.0686556 | Y14: ='B3.14'!Z13/1000 -> 46.1135777
I16: učitelé
J17: 2003 | K17: 2004 | L17: 2005 | M17: 2007 | N17: 2008 | O17: 2009 | P17: 2010 | Q17: 2011 | R17: 2012 | S17: 2013 | T17: 2014 | U17: 2015 | V17: 2016 | W17: 2017 | X17: 2018 | Y17: 2019
I18: nominální mzdy | J18: 15142.96369 | K18: 16183.75512 | L18: 17209.30228 | M18: 19216 | N18: 19866.16569 | O18: ='B3.15'!P14 -> 21036.65038 | P18: ='B3.15'!Q14 -> 20298.60419 | Q18: ='B3.15'!R14 -> 21024.7699 | R18: ='B3.15'!S14 -> 23326.58533 | S18: ='B3.15'!T14 -> 23398.84352 | T18: ='B3.15'!U14 -> 23720.195 | U18: ='B3.15'!V14 -> 24108.01293 | V18: ='B3.15'!W14 -> 25299.67334 | W18: ='B3.15'!X14 -> 27089.12522 | X18: ='B3.15'!Y14 -> 30020.6 | Y18: ='B3.15'!Z14 -> 34154.64001
I19: reálné mzdy | J19: 15856.50648 | K19: 16497.20196 | L19: 17209.30228 | M19: 22527.54982 | N19: 21903.15953 | O19: ='B3.15'!P17 -> 22940.73105 | P19: ='B3.15'!Q17 -> 21826.45612 | Q19: ='B3.15'!R17 -> 22178.02732 | R19: ='B3.15'!S17 -> 23826.9513 | S19: ='B3.15'!T17 -> 23563.79005 | T19: ='B3.15'!U17 -> 23791.56971 | U19: ='B3.15'!V17 -> 24108.01293 | V19: ='B3.15'!W17 -> 25123.80669 | W19: ='B3.15'!X17 -> 26274.61224 | X19: ='B3.15'!Y17 -> 28509.59164 | Y19: ='B3.15'!Z17 -> 31537.06372
I20: počty | J20: 23.421596 | K20: 23.161936 | L20: 22.843412 | M20: 22.76467 | N20: 23.378281 | O20: ='B3.14'!P14/1000 -> 24.192999 | P20: ='B3.14'!Q14/1000 -> 25.307734 | Q20: ='B3.14'!R14/1000 -> 26.371601 | R20: ='B3.14'!S14/1000 -> 27.365211 | S20: ='B3.14'!T14/1000 -> 28.308481 | T20: ='B3.14'!U14/1000 -> 29.156565 | U20: ='B3.14'!V14/1000 -> 29.66249 | V20: ='B3.14'!W14/1000 -> 29.784758 | W20: ='B3.14'!X14/1000 -> 30.208621 | X20: ='B3.14'!Y14/1000 -> 30.8021488 | Y20: ='B3.14'!Z14/1000 -> 31.98373
D42: Komentáře: | Y42: Zdroj: databáze MŠMT, ČSÚ
E43: Průměrná reálná měsíční mzda ve stálých cenách roku 2015.
D44: 1) | E44: Učitelé včetně vedoucích zaměstnanců.
